Workbook

Sheet notes (hidden)
H2: =SUM(H3:H8) -> 0
C3: 600 | D3: 24 | E3: 600 | F3: 1000 | G3: =IF(Form!$D$4=D3,1,0) -> 0 | H3: =IF(G3=1,IF(OR(E3>Form!M$5,F3<Form!M$5),1,0),0) -> 0
C4: 800 | D4: 30 | E4: 800 | F4: 1200 | G4: =IF(Form!$D$4=D4,1,0) -> 0 | H4: =IF(G4=1,IF(OR(E4>Form!M$5,F4<Form!M$5),1,0),0) -> 0
C5: 1000 | D5: 36 | E5: 1000 | F5: 1400 | G5: =IF(Form!$D$4=D5,1,0) -> 0 | H5: =IF(G5=1,IF(OR(E5>Form!M$5,F5<Form!M$5),1,0),0) -> 0
C6: 1200 | D6: 42 | E6: 1200 | F6: 1600 | G6: =IF(Form!$D$4=D6,1,0) -> 0 | H6: =IF(G6=1,IF(OR(E6>Form!M$5,F6<Form!M$5),1,0),0) -> 0
C7: 1400 | D7: 48 | E7: 1400 | F7: 1800 | G7: =IF(Form!$D$4=D7,1,0) -> 0 | H7: =IF(G7=1,IF(OR(E7>Form!M$5,F7<Form!M$5),1,0),0) -> 0
C8: 1600 | D8: 60 | E8: 1600 | F8: 2000 | G8: =IF(Form!$D$4=D8,1,0) -> 0 | H8: =IF(G8=1,IF(OR(E8>Form!M$5,F8<Form!M$5),1,0),0) -> 0
C9: 1800
C10: 2000
D13: Total
B14: =Form!M5+Form!M6 -> 0 | E14: =E31 -> 0 | F14: =F31 -> 0 | G14: 0 | H14: 0 | I14: 0 | J14: 0 | K14: 0 | L14: =SUM(E14:K14) -> 0 | P14: 58
E15: =Form!C27 -> 65 | F15: =Form!E27 -> 75 | G15: =Form!G27 -> 85 | H15: =Form!I27 -> 95 | I15: =Form!K27 -> 100 | J15: =Form!M27 -> 105 | K15: =Form!O27 -> 115
A16: =C16+D16 -> 0 | B16: =P16 -> 0 | C16: =Form!A31 -> 0 | D16: =Form!B31 -> 0 | E16: =Form!C31 -> 0 | F16: =Form!E31 -> 0 | G16: =Form!G31 -> 0 | H16: =Form!I31 -> 0 | I16: =Form!K31 -> 0 | J16: =Form!M31 -> 0 | K16: =Form!O31 -> 0 | L16: =Form!$M$5+Form!M$6 -> 0 | M16: =IF(C16+D16=Form!M$5+Form!M$6,1,0) -> 1 | N16: =IF(A16<L16,1,0) -> 0 | O16: =IF(A16>L16,2,0) -> 0 | P16: =IF(AND(N16=1,N17=0),1,0)+IF(AND(O15=0,O16=2),2,0) -> 0
A17: =C17+D17 -> 0 | B17: =P17 -> 0 | C17: =C16 -> 0 | D17: =Form!B32 -> 0 | E17: =Form!C32 -> 0 | F17: =Form!E32 -> 0 | G17: =Form!G32 -> 0 | H17: =Form!I32 -> 0 | I17: =Form!K32 -> 0 | J17: =Form!M32 -> 0 | K17: =Form!O32 -> 0 | L17: =Form!$M$5+Form!M$6 -> 0 | M17: =IF(C17+D17=Form!M$5+Form!M$6,1,0) -> 1 | N17: =IF(A17<L17,1,0) -> 0 | O17: =IF(A17>L17,2,0) -> 0 | P17: =IF(AND(N17=1,N18=0),1,0)+IF(AND(O16=0,O17=2),2,0) -> 0
A18: 0 | B18: 0 | C18: =C17 -> 0 | D18: =Form!B33 -> 0 | E18: =Form!C33 -> 0 | F18: =Form!E33 -> 0 | G18: =Form!G33 -> 0 | H18: =Form!I33 -> 0 | I18: =Form!K33 -> 0 | J18: =Form!M33 -> 0 | K18: =Form!O33 -> 0 | L18: =Form!$M$5+Form!M$6 -> 0 | M18: =IF(C18+D18=Form!M$5+Form!M$6,1,0) -> 1 | N18: 0 | O18: =IF(A18>L18,2,0) -> 0 | P18: =IF(AND(N18=1,N19=0),1,0)+IF(AND(O17=0,O18=2),2,0) -> 0
A19: 0 | B19: 0 | C19: =C18 -> 0 | D19: =Form!B34 -> 0 | E19: =Form!C34 -> 0 | F19: =Form!E34 -> 0 | G19: =Form!G34 -> 0 | H19: =Form!I34 -> 0 | I19: =Form!K34 -> 0 | J19: =Form!M34 -> 0 | K19: =Form!O34 -> 0 | L19: =Form!$M$5+Form!M$6 -> 0 | M19: =IF(C19+D19=Form!M$5+Form!M$6,1,0) -> 1 | N19: 0 | O19: =IF(A19>L19,2,0) -> 0 | P19: =IF(AND(N19=1,N20=0),1,0)+IF(AND(O18=0,O19=2),2,0) -> 0
A20: 0 | B20: 0 | C20: =Form!A35 -> 0 | D20: =Form!B35 -> 0 | E20: =Form!C35 -> 0 | F20: =Form!E35 -> 0 | G20: =Form!G35 -> 0 | H20: =Form!I35 -> 0 | I20: =Form!K35 -> 0 | J20: =Form!M35 -> 0 | K20: =Form!O35 -> 0 | L20: =Form!$M$5+Form!M$6 -> 0 | M20: =IF(C20+D20=Form!M$5+Form!M$6,1,0) -> 1 | N20: 0 | O20: =IF(A20>L20,2,0) -> 0 | P20: =IF(AND(N20=1,N21=0),1,0)+IF(AND(O19=0,O20=2),2,0) -> 0
A21: 0 | B21: 0 | C21: =C20 -> 0 | D21: =Form!B36 -> 0 | E21: =Form!C36 -> 0 | F21: =Form!E36 -> 0 | G21: =Form!G36 -> 0 | H21: =Form!I36 -> 0 | I21: =Form!K36 -> 0 | J21: =Form!M36 -> 0 | K21: =Form!O36 -> 0 | L21: =Form!$M$5+Form!M$6 -> 0 | M21: =IF(C21+D21=Form!M$5+Form!M$6,1,0) -> 1 | N21: 0 | O21: =IF(A21>L21,2,0) -> 0 | P21: =IF(AND(N21=1,N22=0),1,0)+IF(AND(O20=0,O21=2),2,0) -> 0
A22: 0 | B22: 0 | C22: =C21 -> 0 | D22: =Form!B37 -> 0 | E22: =Form!C37 -> 0 | F22: =Form!E37 -> 0 | G22: =Form!G37 -> 0 | H22: =Form!I37 -> 0 | I22: =Form!K37 -> 0 | J22: =Form!M37 -> 0 | K22: =Form!O37 -> 0 | L22: =Form!$M$5+Form!M$6 -> 0 | M22: =IF(C22+D22=Form!M$5+Form!M$6,1,0) -> 1 | N22: 0 | O22: 0 | P22: 0
A23: 0 | B23: 0 | C23: =C22 -> 0 | D23: =Form!B38 -> 0 | E23: =Form!C38 -> 0 | F23: =Form!E38 -> 0 | G23: =Form!G38 -> 0 | H23: =Form!I38 -> 0 | I23: =Form!K38 -> 0 | J23: =Form!M38 -> 0 | K23: =Form!O38 -> 0 | L23: =Form!$M$5+Form!M$6 -> 0 | M23: =IF(C23+D23=Form!M$5+Form!M$6,1,0) -> 1 | N23: 0 | O23: 0 | P23: 0
A24: 0 | B24: 0 | C24: =Form!A39 -> 0 | D24: =Form!B39 -> 0 | E24: =Form!C39 -> 0 | F24: =Form!E39 -> 0 | G24: =Form!G39 -> 0 | H24: =Form!I39 -> 0 | I24: =Form!K39 -> 0 | J24: =Form!M39 -> 0 | K24: =Form!O39 -> 0 | L24: =Form!$M$5+Form!M$6 -> 0 | M24: =IF(C24+D24=Form!M$5+Form!M$6,1,0) -> 1 | N24: 0 | O24: 0 | P24: 0
A25: 0 | B25: 0 | C25: =C24 -> 0 | D25: =Form!B40 -> 0 | E25: =Form!C40 -> 0 | F25: =Form!E40 -> 0 | G25: =Form!G40 -> 0 | H25: =Form!I40 -> 0 | I25: =Form!K40 -> 0 | J25: =Form!M40 -> 0 | K25: =Form!O40 -> 0 | L25: =Form!$M$5+Form!M$6 -> 0 | M25: =IF(C25+D25=Form!M$5+Form!M$6,1,0) -> 1 | N25: 0 | O25: 0 | P25: 0
A26: 0 | B26: 0 | C26: =C25 -> 0 | D26: =Form!B41 -> 0 | E26: =Form!C41 -> 0 | F26: =Form!E41 -> 0 | G26: =Form!G41 -> 0 | H26: =Form!I41 -> 0 | I26: =Form!K41 -> 0 | J26: =Form!M41 -> 0 | K26: =Form!O41 -> 0 | L26: =Form!$M$5+Form!M$6 -> 0 | M26: =IF(C26+D26=Form!M$5+Form!M$6,1,0) -> 1 | N26: 0 | O26: 0 | P26: 0
A27: 0 | B27: 0 | C27: =C26 -> 0 | D27: =Form!B42 -> 0 | E27: =Form!C42 -> 0 | F27: =Form!E42 -> 0 | G27: =Form!G42 -> 0 | H27: =Form!I42 -> 0 | I27: =Form!K42 -> 0 | J27: =Form!M42 -> 0 | K27: =Form!O42 -> 0 | L27: =Form!$M$5+Form!M$6 -> 0 | M27: =IF(C27+D27=Form!M$5+Form!M$6,1,0) -> 1 | N27: 0 | O27: 0 | P27: 0
A28: 0 | B28: =SUM(B16:B27) -> 0
F29: =IF(AND(F15>Form!$M$4,E15<Form!$M$4),2,0) -> 0 | G29: =IF(AND(G15>Form!$M$4,F15<Form!$M$4),2,0) -> 0 | H29: =IF(AND(H15>Form!$M$4,G15<Form!$M$4),2,0) -> 0 | I29: =IF(AND(I15>Form!$M$4,H15<Form!$M$4),2,0) -> 0 | J29: =IF(AND(J15>Form!$M$4,I15<Form!$M$4),2,0) -> 0 | K29: =IF(AND(K15>Form!$M$4,J15<Form!$M$4),2,0) -> 0
C30: =HLOOKUP(1,E14:K15,2,FALSE) ->  | E30: =IF(F29=2,1,0) -> 0 | F30: =IF(G29=2,1,0) -> 0 | G30: 0 | H30: 0 | I30: 0 | J30: 0 | K30: 0
C31: =HLOOKUP(2,E14:K15,2,FALSE) ->  | E31: =SUM(E29:E30) -> 0 | F31: 0 | G31: 0 | H31: 0 | I31: 0 | J31: 0 | K31: 0
B32: =(VLOOKUP(1,B14:K27,3,FALSE)) ->  | C32: =IF(ISERROR(B32),0,B32) -> 0 | E32: =(C34-C35)/(C32-C33)*(Form!$M$6-C33)+C35 ->  | F32: =(C36-C37)/(C32-C33)*(Form!M6-C33)+C37 -> 
B33: =VLOOKUP(2,B14:K27,3,FALSE) ->  | C33: =IF(ISERROR(B33),0,B33) -> 0 | E33: =IF(AND(B28=0,L14=3),VLOOKUP(Form!$M$5+Form!$M$6,notes!A14:K27,MATCH(1,notes!A14:K14,FALSE),FALSE),0) -> 0 | F33: =IF(AND(B28=0,L14=3),VLOOKUP(Form!$M$5+Form!$M$6,notes!A14:K27,MATCH(2,notes!A14:K14,FALSE),FALSE),0) -> 0 | I33: exactly
B34: =VLOOKUP(1,B14:K27,MATCH(1,B14:K14,FALSE),FALSE) ->  | C34: =MIN(B34,B36) ->  | E34: =IF(ISERROR(E32),E33,E32) -> 0 | F34: =IF(ISERROR(F32),F33,F32) -> 0 | I34: x | J34: y | K34: err1 | L34: err2 | M34: err3 | N34: ans
B35: =VLOOKUP(2,B14:K27,MATCH(1,B14:K14,FALSE),FALSE) ->  | C35: =MAX(B35,B37) ->  | E35: =MIN(E34:F34) -> 0 | F35: =MAX(E34:F34) -> 0 | I35: y | J35: y | K35: =IF(ISERROR(VLOOKUP(Form!$M$5+Form!$M$6,notes!A15:K27,MATCH(Form!$M$4,notes!A15:K15,FALSE),FALSE)),0,VLOOKUP(Form!$M$5+Form!$M$6,notes!A15:K27,MATCH(Form!$M$4,notes!A15:K15,FALSE),FALSE)) -> 0 | N35: =SUM(K35:M35) -> 0
B36: =VLOOKUP(1,B14:K27,MATCH(2,B14:K14,FALSE),FALSE) ->  | C36: =MAX(B36,B34) ->  | E36: =(E35-F35)/(C31-C30)*(Form!$M$4-C30)+F35 ->  | I36: y | J36: n | N36: =SUM(K36:M36) -> 0
B37: =VLOOKUP(2,B14:K27,MATCH(2,B14:K14,FALSE),FALSE) ->  | C37: =MIN(B35,B37) ->  | I37: n | J37: n | K37: =IF(OR(E36>100000,E36<=0),0,E36) ->  | L37: =IF(K37<>0,0,MIN(E32:F32)) ->  | M37: =IF(AND(L37=0,K37=0),C34,0) ->  | N37: =SUM(K37:M37) -> 
N38: =IF(ISERROR(N37),N35,N37) -> 0
A41: sens | E41: =E58 -> 0 | F41: =F58 -> 0 | G41: 0 | H41: 0 | I41: 0 | J41: 0 | K41: 0 | L41: =SUM(E41:K41) -> 0
E42: =E15 -> 65 | F42: =F15 -> 75 | G42: 85 | H42: 95 | I42: 100 | J42: 105 | K42: 115
A43: =C43+D43 -> 0 | B43: =P43 -> 0 | C43: =C16 -> 0 | D43: =D16 -> 0 | E43: =Form!D31 -> 0 | F43: =Form!F31 -> 0 | G43: =Form!H31 -> 0 | H43: =Form!J31 -> 0 | I43: =Form!L31 -> 0 | J43: =Form!N31 -> 0 | K43: =Form!P31 -> 0 | L43: =Form!$M$5+Form!M$6 -> 0 | M43: =IF(C43+D43=Form!M$5+Form!M$6,1,0) -> 1 | N43: =IF(A43<L43,1,0) -> 0 | O43: =IF(A43>L43,2,0) -> 0 | P43: =IF(AND(N43=1,N44=0),1,0)+IF(AND(O42=0,O43=2),2,0) -> 0
A44: =C44+D44 -> 0 | B44: =P44 -> 0 | C44: =C17 -> 0 | D44: =D17 -> 0 | E44: =Form!D32 -> 0 | F44: =Form!F32 -> 0 | G44: =Form!H32 -> 0 | H44: =Form!J32 -> 0 | I44: =Form!L32 -> 0 | J44: =Form!N32 -> 0 | K44: =Form!P32 -> 0 | L44: =Form!$M$5+Form!M$6 -> 0 | M44: =IF(C44+D44=Form!M$5+Form!M$6,1,0) -> 1 | N44: =IF(A44<L44,1,0) -> 0 | O44: =IF(A44>L44,2,0) -> 0 | P44: =IF(AND(N44=1,N45=0),1,0)+IF(AND(O43=0,O44=2),2,0) -> 0
A45: =C45+D45 -> 0 | B45: 0 | C45: 0 | D45: 0 | E45: =Form!D33 -> 0 | F45: =Form!F33 -> 0 | G45: =Form!H33 -> 0 | H45: =Form!J33 -> 0 | I45: =Form!L33 -> 0 | J45: =Form!N33 -> 0 | K45: =Form!P33 -> 0 | L45: =Form!$M$5+Form!M$6 -> 0 | M45: =IF(C45+D45=Form!M$5+Form!M$6,1,0) -> 1 | N45: 0 | O45: =IF(A45>L45,2,0) -> 0 | P45: =IF(AND(N45=1,N46=0),1,0)+IF(AND(O44=0,O45=2),2,0) -> 0
A46: 0 | B46: 0 | C46: 0 | D46: 0 | E46: =Form!D34 -> 0 | F46: =Form!F34 -> 0 | G46: =Form!H34 -> 0 | H46: =Form!J34 -> 0 | I46: =Form!L34 -> 0 | J46: =Form!N34 -> 0 | K46: =Form!P34 -> 0 | L46: =Form!$M$5+Form!M$6 -> 0 | M46: =IF(C46+D46=Form!M$5+Form!M$6,1,0) -> 1 | N46: 0 | O46: =IF(A46>L46,2,0) -> 0 | P46: =IF(AND(N46=1,N47=0),1,0)+IF(AND(O45=0,O46=2),2,0) -> 0
A47: 0 | B47: 0 | C47: 0 | D47: 0 | E47: =Form!D35 -> 0 | F47: =Form!F35 -> 0 | G47: =Form!H35 -> 0 | H47: =Form!J35 -> 0 | I47: =Form!L35 -> 0 | J47: =Form!N35 -> 0 | K47: =Form!P35 -> 0 | L47: =Form!$M$5+Form!M$6 -> 0 | M47: =IF(C47+D47=Form!M$5+Form!M$6,1,0) -> 1 | N47: 0 | O47: =IF(A47>L47,2,0) -> 0 | P47: =IF(AND(N47=1,N48=0),1,0)+IF(AND(O46=0,O47=2),2,0) -> 0
A48: 0 | B48: 0 | C48: 0 | D48: 0 | E48: =Form!D36 -> 0 | F48: =Form!F36 -> 0 | G48: =Form!H36 -> 0 | H48: =Form!J36 -> 0 | I48: =Form!L36 -> 0 | J48: =Form!N36 -> 0 | K48: =Form!P36 -> 0 | L48: =Form!$M$5+Form!M$6 -> 0 | M48: =IF(C48+D48=Form!M$5+Form!M$6,1,0) -> 1 | N48: 0 | O48: =IF(A48>L48,2,0) -> 0 | P48: =IF(AND(N48=1,N49=0),1,0)+IF(AND(O47=0,O48=2),2,0) -> 0
A49: 0 | B49: 0 | C49: 0 | D49: 0 | E49: =Form!D37 -> 0 | F49: =Form!F37 -> 0 | G49: =Form!H37 -> 0 | H49: =Form!J37 -> 0 | I49: =Form!L37 -> 0 | J49: =Form!N37 -> 0 | K49: =Form!P37 -> 0 | L49: =Form!$M$5+Form!M$6 -> 0 | M49: =IF(C49+D49=Form!M$5+Form!M$6,1,0) -> 1 | N49: 0 | O49: 0 | P49: 0
A50: 0 | B50: 0 | C50: 0 | D50: 0 | E50: =Form!D38 -> 0 | F50: =Form!F38 -> 0 | G50: =Form!H38 -> 0 | H50: =Form!J38 -> 0 | I50: =Form!L38 -> 0 | J50: =Form!N38 -> 0 | K50: =Form!P38 -> 0 | L50: =Form!$M$5+Form!M$6 -> 0 | M50: =IF(C50+D50=Form!M$5+Form!M$6,1,0) -> 1 | N50: 0 | O50: 0 | P50: 0
A51: 0 | B51: 0 | C51: 0 | D51: 0 | E51: =Form!D39 -> 0 | F51: =Form!F39 -> 0 | G51: =Form!H39 -> 0 | H51: =Form!J39 -> 0 | I51: =Form!L39 -> 0 | J51: =Form!N39 -> 0 | K51: =Form!P39 -> 0 | L51: =Form!$M$5+Form!M$6 -> 0 | M51: =IF(C51+D51=Form!M$5+Form!M$6,1,0) -> 1 | N51: 0 | O51: 0 | P51: 0
A52: 0 | B52: 0 | C52: 0 | D52: 0 | E52: =Form!D40 -> 0 | F52: =Form!F40 -> 0 | G52: =Form!H40 -> 0 | H52: =Form!J40 -> 0 | I52: =Form!L40 -> 0 | J52: =Form!N40 -> 0 | K52: =Form!P40 -> 0 | L52: =Form!$M$5+Form!M$6 -> 0 | M52: =IF(C52+D52=Form!M$5+Form!M$6,1,0) -> 1 | N52: 0 | O52: 0 | P52: 0
A53: 0 | B53: 0 | C53: 0 | D53: 0 | E53: =Form!D41 -> 0 | F53: =Form!F41 -> 0 | G53: =Form!H41 -> 0 | H53: =Form!J41 -> 0 | I53: =Form!L41 -> 0 | J53: =Form!N41 -> 0 | K53: =Form!P41 -> 0 | L53: =Form!$M$5+Form!M$6 -> 0 | M53: =IF(C53+D53=Form!M$5+Form!M$6,1,0) -> 1 | N53: 0 | O53: 0 | P53: 0
A54: 0 | B54: 0 | C54: 0 | D54: 0 | E54: =Form!D42 -> 0 | F54: =Form!F42 -> 0 | G54: =Form!H42 -> 0 | H54: =Form!J42 -> 0 | I54: =Form!L42 -> 0 | J54: =Form!N42 -> 0 | K54: =Form!P42 -> 0 | L54: =Form!$M$5+Form!M$6 -> 0 | M54: =IF(C54+D54=Form!M$5+Form!M$6,1,0) -> 1 | N54: 0 | O54: 0 | P54: 0
A55: 0 | B55: =SUM(B43:B54) -> 0
F56: =IF(AND(F42>Form!$M$4,E42<Form!$M$4),2,0) -> 0 | G56: =IF(AND(G42>Form!$M$4,F42<Form!$M$4),2,0) -> 0 | H56: =IF(AND(H42>Form!$M$4,G42<Form!$M$4),2,0) -> 0 | I56: =IF(AND(I42>Form!$M$4,H42<Form!$M$4),2,0) -> 0 | J56: =IF(AND(J42>Form!$M$4,I42<Form!$M$4),2,0) -> 0 | K56: =IF(AND(K42>Form!$M$4,J42<Form!$M$4),2,0) -> 0
C57: =HLOOKUP(1,E41:K42,2,FALSE) ->  | E57: =IF(F56=2,1,0) -> 0 | F57: =IF(G56=2,1,0) -> 0 | G57: 0 | H57: 0 | I57: 0 | J57: 0 | K57: 0
C58: =HLOOKUP(2,E41:K42,2,FALSE) ->  | E58: =SUM(E56:E57) -> 0 | F58: 0 | G58: 0 | H58: 0 | I58: 0 | J58: 0 | K58: 0
B59: =(VLOOKUP(1,B41:K54,3,FALSE)) ->  | C59: =IF(ISERROR(B59),0,B59) -> 0 | E59: =(C61-C62)/(C59-C60)*(Form!$M$6-C60)+C62 ->  | F59: =(C63-C64)/(C59-C60)*(Form!M6-C60)+C64 -> 
B60: =VLOOKUP(2,B41:K54,3,FALSE) ->  | C60: =IF(ISERROR(B60),0,B60) -> 0 | E60: =IF(AND(B55=0,L41=3),VLOOKUP(Form!$M$5+Form!$M$6,notes!A41:K54,MATCH(1,notes!A41:K41,FALSE),FALSE),0) -> 0 | F60: =IF(AND(B55=0,L41=3),VLOOKUP(Form!$M$5+Form!$M$6,notes!A41:K54,MATCH(2,notes!A41:K41,FALSE),FALSE),0) -> 0 | I60: exactly
B61: =VLOOKUP(1,B41:K54,MATCH(1,B41:K41,FALSE),FALSE) ->  | C61: =MIN(B61,B63) ->  | E61: =IF(ISERROR(E59),E60,E59) -> 0 | F61: =IF(ISERROR(F59),F60,F59) -> 0 | I61: x | J61: y | K61: err1 | L61: err2 | M61: err3 | N61: ans
B62: =VLOOKUP(2,B41:K54,MATCH(1,B41:K41,FALSE),FALSE) ->  | C62: =MAX(B62,B64) ->  | E62: =MIN(E61:F61) -> 0 | F62: =MAX(E61:F61) -> 0 | I62: y | J62: y | K62: =IF(ISERROR(VLOOKUP(Form!$M$5+Form!$M$6,notes!A42:K54,MATCH(Form!$M$4,notes!A42:K42,FALSE),FALSE)),0,VLOOKUP(Form!$M$5+Form!$M$6,notes!A42:K54,MATCH(Form!$M$4,notes!A42:K42,FALSE),FALSE)) -> 0 | N62: =SUM(K62:M62) -> 0
B63: =VLOOKUP(1,B41:K54,MATCH(2,B41:K41,FALSE),FALSE) ->  | C63: =MAX(B63,B61) ->  | E63: =(E62-F62)/(C58-C57)*(Form!$M$4-C57)+F62 ->  | I63: y | J63: n | N63: =SUM(K63:M63) -> 0
B64: =VLOOKUP(2,B41:K54,MATCH(2,B41:K41,FALSE),FALSE) ->  | C64: =MIN(B62,B64) ->  | I64: n | J64: n | K64: =IF(OR(E63>100000,E63<=0),0,E63) ->  | L64: =IF(K64<>0,0,MIN(E59:F59)) ->  | M64: =IF(AND(L64=0,K64=0),C61,0) ->  | N64: =SUM(K64:M64) -> 
B65: =VLOOKUP(Form!M32+Form!M33,A41:K54,MATCH(2,A41:K41,FALSE),FALSE) ->  | N65: =IF(ISERROR(N64),N62,N64) -> 0

Sheet Options (hidden)
A1: PSA4BG

Sheet Calcs (hidden)
D1: Condenser :
D2: ADP Evaporator:
D3: Condenser Entering Air Temperature: | E3: 100 | F3: (°F) Dry Bulb, 85°F to 115°F
D4: Evaporator Air Flow: | E4: 1265 | F4: CFM
D5: Entering Evaporator Air (DB): | E5: 77.5 | F5: (°F) Dry Bulb
D6: Entering Evaporator Air (WB): | E6: 60.6 | F6: (°F) Wet Bulb, 63°F to 71°F
A9: Total
A10: 28.55 | B10: 1200 60.6
B12: Diff 200 | C12: =A10-A14 -> 0.308 | D12: Diff 1 cfm | E12: =C12/200 -> 0.00154 | F12: 1265 total | G12: =A10-(65*E12) -> 28.4499
A14: 28.242 | B14: 1400 60.6
A16: Sens
A17: 25.32 | B17: 1200 60.6
B19: Diff 200 | C19: =A17-A21 -> 0.5544 | D19: Diff 1 cfm | E19: =C19/200 -> 0.002772 | F19: 1265 Sens | G19: =A17-(65*E19) -> 25.13982
A21: 24.7656 | B21: 1400 60.6

Sheet PSA4BG_24 (hidden)
A2: PSA4BG_24
A3: Evaporator Air | C3: Condenser Entering Air Temperature ˚F
A4: 80 | B4: °F DB | C4: 65 | E4: 75 | G4: 85 | I4: 95 | K4: 100 | M4: 105 | O4: 115
A5: CFM | B5: EWB† ˚F | C5: Capacity Mbtuh | E5: Capacity Mbtuh | G5: Capacity Mbtuh | I5: Capacity Mbtuh | K5: Capacity Mbtuh | M5: Capacity Mbtuh | O5: Capacity Mbtuh
C6: Total | D6: Sens. | E6: Total | F6: Sens. | G6: Total | H6: Sens. | I6: Total | J6: Sens. | K6: Total | L6: Sens. | M6: Total | N6: Sens. | O6: Total | P6: Sens.
R7: Total Factors | Y7: Sens. % | AF7: IDB Adj | AM7: Sens Calc
A8: 700 | B8: 72 | C8: =R8*$I$14 -> 29.5441008 | D8: =IF(AM8>C8,C8,AM8) -> 14.31386025 | E8: =S8*$I$14 -> 28.41695304 | F8: =IF(AN8>E8,E8,AN8) -> 13.80985109 | G8: =T8*$I$14 -> 27.17983963 | H8: =IF(AO8>G8,G8,AO8) -> 13.33333333 | I8: =U8*$I$14 -> 25.8327606 | J8: =IF(AP8>I8,I8,AP8) -> 12.86597938 | K8: =V8*$I$14 -> 25.09049255 | L8: =IF(AQ8>K8,K8,AQ8) -> 12.6277205 | M8: =W8*$I$14 -> 24.34822451 | N8: =IF(AR8>M8,M8,AR8) -> 12.38946163 | O8: =X8*$I$14 -> 22.70790378 | P8: =IF(AS8>O8,O8,AS8) -> 11.87628866 | R8: 1.2310042 | S8: 1.18403971 | T8: 1.132493318 | U8: 1.076365025 | V8: 1.04543719 | W8: 1.014509355 | X8: 0.9461626575 | Y8: 0.4844913151 | Z8: 0.485972267 | AA8: 0.4905596763 | AB8: 0.4980489535 | AC8: 0.5032870709 | AD8: 0.5088445615 | AE8: 0.5230024213 | AF8: 0.9485714286 | AG8: 0.9142857143 | AH8: 0.9142857143 | AI8: 0.9171428571 | AJ8: 0.9 | AK8: 0.8828571429 | AL8: 0.7657142857 | AM8: =Y8*C8+($A$4-80)*AF8*$A$8/1000 -> 14.31386025 | AN8: =Z8*E8+($A$4-80)*AG8*$A$8/1000 -> 13.80985109 | AO8: =AA8*G8+($A$4-80)*AH8*$A$8/1000 -> 13.33333333 | AP8: =AB8*I8+($A$4-80)*AI8*$A$8/1000 -> 12.86597938 | AQ8: =AC8*K8+($A$4-80)*AJ8*$A$8/1000 -> 12.6277205 | AR8: =AD8*M8+($A$4-80)*AK8*$A$8/1000 -> 12.38946163 | AS8: =AE8*O8+($A$4-80)*AL8*$A$8/1000 -> 11.87628866
B9: 69.5 | C9: 28.16036655 | D9: 15.89461627 | E9: 27.09736541 | F9: 15.40435281 | G9: 25.8465063 | H9: 14.87743414 | I9: 24.48568156 | J9: 14.34135166 | K9: 23.78694158 | L9: 14.09392898 | M9: 23.0882016 | N9: 13.8465063 | O9: 21.72279496 | P9: 13.42955326 | R9: 1.173348606 | S9: 1.129056892 | T9: 1.076937763 | U9: 1.020236732 | V9: 0.9911225659 | W9: 0.9620084002 | X9: 0.9051164567 | Y9: 0.564432151 | Z9: 0.5684815692 | AA9: 0.5756071619 | AB9: 0.5857035928 | AC9: 0.5925069826 | AD9: 0.5997221671 | AE9: 0.6182240034 | AF9: 0.9485714286 | AG9: 0.9142857143 | AH9: 0.9142857143 | AI9: 0.9171428571 | AJ9: 0.9 | AK9: 0.8828571429 | AL9: 0.7657142857 | AM9: =Y9*C9+($A$4-80)*AF9*$A$8/1000 -> 15.89461627 | AN9: =Z9*E9+($A$4-80)*AG9*$A$8/1000 -> 15.40435281 | AO9: =AA9*G9+($A$4-80)*AH9*$A$8/1000 -> 14.87743414 | AP9: =AB9*I9+($A$4-80)*AI9*$A$8/1000 -> 14.34135166 | AQ9: =AC9*K9+($A$4-80)*AJ9*$A$8/1000 -> 14.09392898 | AR9: =AD9*M9+($A$4-80)*AK9*$A$8/1000 -> 13.8465063 | AS9: =AE9*O9+($A$4-80)*AL9*$A$8/1000 -> 13.42955326
B10: 67 | C10: 26.7766323 | D10: 17.47537228 | E10: 25.77777778 | F10: 16.99885452 | G10: 24.51317297 | H10: 16.42153494 | I10: 23.13860252 | J10: 15.81672394 | K10: 22.48339061 | L10: 15.56013746 | M10: 21.82817869 | N10: 15.30355097 | O10: 20.73768614 | P10: 14.98281787 | R10: 1.115693013 | S10: 1.074074074 | T10: 1.021382207 | U10: 0.9641084383 | V10: 0.936807942 | W10: 0.9095074456 | X10: 0.8640702558 | Y10: 0.6526351814 | Z10: 0.6594383221 | AA10: 0.6699065421 | AB10: 0.6835643564 | AC10: 0.6920725494 | AD10: 0.7010915197 | AE10: 0.7224922669 | AF10: 0.9485714286 | AG10: 0.9142857143 | AH10: 0.9142857143 | AI10: 0.9171428571 | AJ10: 0.9 | AK10: 0.8828571429 | AL10: 0.7657142857 | AM10: =Y10*C10+($A$4-80)*AF10*$A$8/1000 -> 17.47537228 | AN10: =Z10*E10+($A$4-80)*AG10*$A$8/1000 -> 16.99885452 | AO10: =AA10*G10+($A$4-80)*AH10*$A$8/1000 -> 16.42153494 | AP10: =AB10*I10+($A$4-80)*AI10*$A$8/1000 -> 15.81672394 | AQ10: =AC10*K10+($A$4-80)*AJ10*$A$8/1000 -> 15.56013746 | AR10: =AD10*M10+($A$4-80)*AK10*$A$8/1000 -> 15.30355097 | AS10: =AE10*O10+($A$4-80)*AL10*$A$8/1000 -> 14.98281787
B11: 62 | C11: 24.0091638 | D11: 19.95876289 | E11: 23.0836197 | F11: 19.49140893 | G11: 22.02978236 | H11: 18.98739977 | I11: 20.9209622 | J11: 18.49255441 | K11: 20.38487973 | L11: 18.27262314 | M11: 19.84879725 | N11: 18.05269187 | O11: 18.87743414 | P11: 17.74112257 | R11: 1.000381825 | S11: 0.9618174876 | T11: 0.9179075983 | U11: 0.8717067583 | V11: 0.8493699885 | W11: 0.8270332188 | X11: 0.7865597556 | Y11: 0.8312977099 | Z11: 0.8443826915 | AA11: 0.8618968386 | AB11: 0.8839246605 | AC11: 0.8963812093 | AD11: 0.9095106187 | AE11: 0.9398058252 | AF11: 0.9485714286 | AG11: 0.9142857143 | AH11: 0.9142857143 | AI11: 0.9171428571 | AJ11: 0.9 | AK11: 0.8828571429 | AL11: 0.7657142857 | AM11: =Y11*C11+($A$4-80)*AF11*$A$8/1000 -> 19.95876289 | AN11: =Z11*E11+($A$4-80)*AG11*$A$8/1000 -> 19.49140893 | AO11: =AA11*G11+($A$4-80)*AH11*$A$8/1000 -> 18.98739977 | AP11: =AB11*I11+($A$4-80)*AI11*$A$8/1000 -> 18.49255441 | AQ11: =AC11*K11+($A$4-80)*AJ11*$A$8/1000 -> 18.27262314 | AR11: =AD11*M11+($A$4-80)*AK11*$A$8/1000 -> 18.05269187 | AS11: =AE11*O11+($A$4-80)*AL11*$A$8/1000 -> 17.74112257
A12: 800 | B12: 72 | C12: 30.38717068 | D12: 15.23940435 | E12: 29.2233677 | F12: 14.73539519 | G12: 27.90378007 | H12: 14.24054983 | I12: 26.4558992 | J12: 13.76403207 | K12: 25.68155785 | L12: 13.5257732 | M12: 24.90721649 | N12: 13.28751432 | O12: 23.27605956 | P12: 12.82016037 | R12: 1.266132111 | S12: 1.217640321 | T12: 1.162657503 | U12: 1.102329133 | V12: 1.07006491 | W12: 1.037800687 | X12: 0.9698358152 | Y12: 0.5015078408 | Z12: 0.504233302 | AA12: 0.5103448276 | AB12: 0.520263249 | AC12: 0.5266726137 | AD12: 0.5334805004 | AE12: 0.5507874016 | AF12: 0.9725 | AG12: 0.955 | AH12: 0.9225 | AI12: 0.895 | AJ12: 0.885 | AK12: 0.875 | AL12: 0.88 | AM12: =Y12*C12+($A$4-80)*AF12*$A$12/1000 -> 15.23940435 | AN12: =Z12*E12+($A$4-80)*AG12*$A$12/1000 -> 14.73539519 | AO12: =AA12*G12+($A$4-80)*AH12*$A$12/1000 -> 14.24054983 | AP12: =AB12*I12+($A$4-80)*AI12*$A$12/1000 -> 13.76403207 | AQ12: =AC12*K12+($A$4-80)*AJ12*$A$12/1000 -> 13.5257732 | AR12: =AD12*M12+($A$4-80)*AK12*$A$12/1000 -> 13.28751432 | AS12: =AE12*O12+($A$4-80)*AL12*$A$12/1000 -> 12.82016037
B13: 69.5 | C13: 28.95303551 | D13: 17.04925544 | E13: 27.86254296 | F13: 16.56815578 | G13: 26.61168385 | H13: 16.06872852 | I13: 25.2279496 | J13: 15.55555556 | K13: 24.48109966 | L13: 15.28293242 | M13: 23.73424971 | N13: 15.01030928 | O13: 22.139748 | P13: 14.43298969 | R13: 1.20637648 | S13: 1.16093929 | T13: 1.10882016 | U13: 1.051164567 | V13: 1.020045819 | W13: 0.9889270714 | X13: 0.9224894998 | Y13: 0.5888589967 | Z13: 0.5946390396 | AA13: 0.603822314 | AB13: 0.6166000726 | AC13: 0.624274752 | AD13: 0.6324324324 | AE13: 0.6519039735 | AF13: 0.9725 | AG13: 0.955 | AH13: 0.9225 | AI13: 0.895 | AJ13: 0.885 | AK13: 0.875 | AL13: 0.88 | AM13: =Y13*C13+($A$4-80)*AF13*$A$12/1000 -> 17.04925544 | AN13: =Z13*E13+($A$4-80)*AG13*$A$12/1000 -> 16.56815578 | AO13: =AA13*G13+($A$4-80)*AH13*$A$12/1000 -> 16.06872852 | AP13: =AB13*I13+($A$4-80)*AI13*$A$12/1000 -> 15.55555556 | AQ13: =AC13*K13+($A$4-80)*AJ13*$A$12/1000 -> 15.28293242 | AR13: =AD13*M13+($A$4-80)*AK13*$A$12/1000 -> 15.01030928 | AS13: =AE13*O13+($A$4-80)*AL13*$A$12/1000 -> 14.43298969
B14: 67 | C14: 27.51890034 | D14: 18.85910653 | E14: 26.50171821 | F14: 18.40091638 | G14: 25.31958763 | H14: 17.89690722 | I14: 24 | J14: 17.34707904 | K14: 23.28064147 | L14: 17.04009164 | M14: 22.56128293 | N14: 16.73310424 | O14: 21.00343643 | P14: 16.04581901 | R14: 1.146620848 | S14: 1.104238259 | T14: 1.054982818 | U14: 1 | V14: 0.9700267278 | W14: 0.9400534555 | X14: 0.8751431844 | Y14: 0.6853146853 | Z14: 0.694329184 | AA14: 0.7068403909 | AB14: 0.7227949599 | AC14: 0.731942531 | AD14: 0.7416734362 | AE14: 0.7639616056 | AF14: 0.9725 | AG14: 0.955 | AH14: 0.9225 | AI14: 0.895 | AJ14: 0.885 | AK14: 0.875 | AL14: 0.88 | AM14: =Y14*C14+($A$4-80)*AF14*$A$12/1000 -> 18.85910653 | AN14: =Z14*E14+($A$4-80)*AG14*$A$12/1000 -> 18.40091638 | AO14: =AA14*G14+($A$4-80)*AH14*$A$12/1000 -> 17.89690722 | AP14: =AB14*I14+($A$4-80)*AI14*$A$12/1000 -> 17.34707904 | AQ14: =AC14*K14+($A$4-80)*AJ14*$A$12/1000 -> 17.04009164 | AR14: =AD14*M14+($A$4-80)*AK14*$A$12/1000 -> 16.73310424 | AS14: =AE14*O14+($A$4-80)*AL14*$A$12/1000 -> 16.04581901
B15: 62 | C15: 24.9255441 | D15: 21.77319588 | E15: 23.91752577 | F15: 21.2233677 | G15: 22.75372279 | H15: 20.56357388 | I15: =U15*$I$14 -> 21.58075601 | J15: 19.92210767 | K15: 21.06300115 | L15: 19.67468499 | M15: 20.54524628 | N15: 19.42726231 | O15: 19.82130584 | P15: 19.22565865 | R15: 1.038564338 | S15: 0.9965635739 | T15: 0.9480717831 | U15: 0.8991981672 | V15: 0.8776250477 | W15: 0.8560519282 | X15: 0.8258877434 | Y15: 0.8735294118 | Z15: 0.8873563218 | AA15: 0.9037454692 | AB15: 0.9231422505 | AC15: 0.9340874483 | AD15: 0.9455842997 | AE15: 0.9699491447 | AF15: 0.9725 | AG15: 0.955 | AH15: 0.9225 | AI15: 0.895 | AJ15: 0.885 | AK15: 0.875 | AL15: 0.88 | AM15: =Y15*C15+($A$4-80)*AF15*$A$12/1000 -> 21.77319588 | AN15: =Z15*E15+($A$4-80)*AG15*$A$12/1000 -> 21.2233677 | AO15: =AA15*G15+($A$4-80)*AH15*$A$12/1000 -> 20.56357388 | AP15: =AB15*I15+($A$4-80)*AI15*$A$12/1000 -> 19.92210767 | AQ15: =AC15*K15+($A$4-80)*AJ15*$A$12/1000 -> 19.67468499 | AR15: =AD15*M15+($A$4-80)*AK15*$A$12/1000 -> 19.42726231 | AS15: =AE15*O15+($A$4-80)*AL15*$A$12/1000 -> 19.22565865
A16: 900 | B16: 72 | C16: 31.23940435 | D16: 16.19243986 | E16: 30.02978236 | F16: 15.6884307 | G16: 28.6185567 | H16: 15.18442153 | I16: =U16*$I$14 -> 27.0790378 | J16: 14.68957617 | K16: 26.26804124 | L16: 14.4558992 | M16: 25.45704467 | N16: 14.22222222 | O16: 23.84421535 | P16: 13.79152348 | R16: 1.301641848 | S16: 1.251240932 | T16: 1.192439863 | U16: 1.128293242 | V16: 1.094501718 | W16: 1.060710195 | X16: 0.9935089729 | Y16: 0.5183338222 | Z16: 0.522429051 | AA16: 0.5305795709 | AB16: 0.5424703892 | AC16: 0.5503226932 | AD16: 0.558675306 | AE16: 0.5784012298 | AF16: 1.002222222 | AG16: 0.9955555556 | AH16: 0.9377777778 | AI16: 0.8822222222 | AJ16: 0.8788888889 | AK16: 0.8755555556 | AL16: 0.9777777778 | AM16: =Y16*C16+($A$4-80)*AF16*$A$16/1000 -> 16.19243986 | AN16: =Z16*E16+($A$4-80)*AG16*$A$16/1000 -> 15.6884307 | AO16: =AA16*G16+($A$4-80)*AH16*$A$16/1000 -> 15.18442153 | AP16: =AB16*I16+($A$4-80)*AI16*$A$16/1000 -> 14.68957617 | AQ16: =AC16*K16+($A$4-80)*AJ16*$A$16/1000 -> 14.4558992 | AR16: =AD16*M16+($A$4-80)*AK16*$A$16/1000 -> 14.22222222 | AS16: =AE16*O16+($A$4-80)*AL16*$A$16/1000 -> 13.79152348
B17: 69.5 | C17: 29.80985109 | D17: 18.27262314 | E17: 28.65979381 | F17: 17.72737686 | G17: 27.30355097 | H17: 17.16838488 | I17: =U17*$I$14 -> 25.82359679 | J17: 16.6093929 | K17: 25.05154639 | L17: 16.34822451 | M17: 24.27949599 | N17: 16.08705613 | O17: 22.7674685 | P17: 15.62428408 | R17: 1.242077129 | S17: 1.194158076 | T17: 1.137647957 | U17: 1.0759832 | V17: 1.043814433 | W17: 1.011645666 | X17: 0.9486445208 | Y17: 0.6129726406 | Z17: 0.6185451639 | AA17: 0.628796778 | AB17: 0.6431866572 | AC17: 0.6525834476 | AD17: 0.6625778449 | AE17: 0.6862547796 | AF17: 1.002222222 | AG17: 0.9955555556 | AH17: 0.9377777778 | AI17: 0.8822222222 | AJ17: 0.8788888889 | AK17: 0.8755555556 | AL17: 0.9777777778 | AM17: =Y17*C17+($A$4-80)*AF17*$A$16/1000 -> 18.27262314 | AN17: =Z17*E17+($A$4-80)*AG17*$A$16/1000 -> 17.72737686 | AO17: =AA17*G17+($A$4-80)*AH17*$A$16/1000 -> 17.16838488 | AP17: =AB17*I17+($A$4-80)*AI17*$A$16/1000 -> 16.6093929 | AQ17: =AC17*K17+($A$4-80)*AJ17*$A$16/1000 -> 16.34822451 | AR17: =AD17*M17+($A$4-80)*AK17*$A$16/1000 -> 16.08705613 | AS17: =AE17*O17+($A$4-80)*AL17*$A$16/1000 -> 15.62428408
B18: 67 | C18: 28.38029782 | D18: 20.35280641 | E18: 27.28980527 | F18: 19.76632302 | G18: 25.98854525 | H18: 19.15234822 | I18: =U18*$I$14 -> 24.56815578 | J18: 18.52920962 | K18: 23.83505155 | L18: 18.24054983 | M18: 23.10194731 | N18: 17.95189003 | O18: 21.69072165 | P18: 17.45704467 | R18: 1.182512409 | S18: 1.13707522 | T18: 1.082856052 | U18: 1.023673158 | V18: 0.9931271478 | W18: 0.9625811378 | X18: 0.9037800687 | Y18: 0.7171456248 | Z18: 0.7243116185 | AA18: 0.7369534556 | AB18: 0.7541961954 | AC18: 0.7652825836 | AD18: 0.7770725902 | AE18: 0.8048162231 | AF18: 1.002222222 | AG18: 0.9955555556 | AH18: 0.9377777778 | AI18: 0.8822222222 | AJ18: 0.8788888889 | AK18: 0.8755555556 | AL18: 0.9777777778 | AM18: =Y18*C18+($A$4-80)*AF18*$A$16/1000 -> 20.35280641 | AN18: =Z18*E18+($A$4-80)*AG18*$A$16/1000 -> 19.76632302 | AO18: =AA18*G18+($A$4-80)*AH18*$A$16/1000 -> 19.15234822 | AP18: =AB18*I18+($A$4-80)*AI18*$A$16/1000 -> 18.52920962 | AQ18: =AC18*K18+($A$4-80)*AJ18*$A$16/1000 -> 18.24054983 | AR18: =AD18*M18+($A$4-80)*AK18*$A$16/1000 -> 17.95189003 | AS18: =AE18*O18+($A$4-80)*AL18*$A$16/1000 -> 17.45704467
B19: 62 | C19: 25.8419244 | D19: 23.6792669 | E19: 24.75143184 | F19: 23.02863688 | G19: 23.47766323 | H19: 22.20389462 | I19: =U19*$I$14 -> 22.23138603 | J19: 21.40664376 | K19: 21.74112257 | L19: 21.12714777 | M19: 21.25085911 | N19: 20.84765178 | O19: 20.76517755 | P19: 20.76517755 | R19: 1.07674685 | S19: 1.03130966 | T19: 0.9782359679 | U19: 0.9263077511 | V19: 0.9058801069 | W19: 0.8854524628 | X19: 0.8652157312 | Y19: 0.9163120567 | Z19: 0.9303961496 | AA19: 0.9457455113 | AB19: 0.9629018961 | AC19: 0.9717597471 | AD19: 0.9810263044 | AE19: 1 | AF19: 1.002222222 | AG19: 0.9955555556 | AH19: 0.9377777778 | AI19: 0.8822222222 | AJ19: 0.8788888889 | AK19: 0.8755555556 | AL19: 0.9777777778 | AM19: =Y19*C19+($A$4-80)*AF19*$A$16/1000 -> 23.6792669 | AN19: =Z19*E19+($A$4-80)*AG19*$A$16/1000 -> 23.02863688 | AO19: =AA19*G19+($A$4-80)*AH19*$A$16/1000 -> 22.20389462 | AP19: =AB19*I19+($A$4-80)*AI19*$A$16/1000 -> 21.40664376 | AQ19: =AC19*K19+($A$4-80)*AJ19*$A$16/1000 -> 21.12714777 | AR19: =AD19*M19+($A$4-80)*AK19*$A$16/1000 -> 20.84765178 | AS19: =AE19*O19+($A$4-80)*AL19*$A$16/1000 -> 20.76517755

Sheet PSA4BG_36 (hidden)
A2: PSA4BG_36
A3: Evaporator Air | C3: Condenser Entering Air Temperature ˚F
A4: 80 | B4: °F DB | C4: 65 | E4: 75 | G4: 85 | I4: 95 | K4: 100 | M4: 105 | O4: 115
A5: CFM | B5: EWB† ˚F | C5: Capacity Mbtuh | E5: Capacity Mbtuh | G5: Capacity Mbtuh | I5: Capacity Mbtuh | K5: Capacity Mbtuh | M5: Capacity Mbtuh | O5: Capacity Mbtuh
C6: Total | D6: Sens. | E6: Total | F6: Sens. | G6: Total | H6: Sens. | I6: Total | J6: Sens. | K6: Total | L6: Sens. | M6: Total | N6: Sens. | O6: Total | P6: Sens.
R7: Total Factors | Y7: Sens. % | AF7: IDB Adj | AM7: Sens Calc
A8: 940 | B8: 72 | C8: =R8*$I$14 -> 27.82836951 | D8: =IF(AM8>C8,C8,AM8) -> 13.55073195 | E8: =S8*$I$14 -> 27.98586572 | F8: =IF(AN8>E8,E8,AN8) -> 13.45986875 | G8: =T8*$I$14 -> 27.13780919 | H8: =IF(AO8>G8,G8,AO8) -> 13.01766784 | I8: =U8*$I$14 -> 25.75668854 | J8: =IF(AP8>I8,I8,AP8) -> 12.44825846 | K8: =V8*$I$14 -> 25.0449268 | L8: =IF(AQ8>K8,K8,AQ8) -> 12.20595659 | M8: =W8*$I$14 -> 24.33316507 | N8: =IF(AR8>M8,M8,AR8) -> 11.96365472 | O8: =X8*$I$14 -> 23.34578496 | P8: =IF(AS8>O8,O8,AS8) -> 11.78192832 | R8: 1.159515396 | S8: 1.166077739 | T8: 1.130742049 | U8: 1.073195356 | V8: 1.043538617 | W8: 1.013881878 | X8: 0.9727410399 | Y8: 0.4869394863 | Z8: 0.480952381 | AA8: 0.4796875 | AB8: 0.4833019755 | AC8: 0.487362438 | AD8: 0.4916604431 | AE8: 0.5046704722 | AF8: 1.072340426 | AG8: 1.063829787 | AH8: 1.057446809 | AI8: 1.05106383 | AJ8: 1.04787234 | AK8: 1.044680851 | AL8: 1.038297872 | AM8: =Y8*C8+($A$4-80)*AF8*$A$8/1000 -> 13.55073195 | AN8: =Z8*E8+($A$4-80)*AG8*$A$8/1000 -> 13.45986875 | AO8: =AA8*G8+($A$4-80)*AH8*$A$8/1000 -> 13.01766784 | AP8: =AB8*I8+($A$4-80)*AI8*$A$8/1000 -> 12.44825846 | AQ8: =AC8*K8+($A$4-80)*AJ8*$A$8/1000 -> 12.20595659 | AR8: =AD8*M8+($A$4-80)*AK8*$A$8/1000 -> 11.96365472 | AS8: =AE8*O8+($A$4-80)*AL8*$A$8/1000 -> 11.78192832
B9: 69.5 | C9: 27.01665825 | D9: 15.05603231 | E9: 26.76829884 | F9: 14.82281676 | G9: 25.91721353 | H9: 14.39273094 | I9: 24.6935891 | J9: 13.8748107 | K9: 24.01968703 | L9: 13.61887935 | M9: 23.34578496 | N9: 13.36294801 | O9: 22.1130742 | P9: 12.96012115 | R9: 1.125694094 | S9: 1.115345785 | T9: 1.079883897 | U9: 1.028899546 | V9: 1.000820293 | W9: 0.9727410399 | X9: 0.9213780919 | Y9: 0.5572869955 | Z9: 0.5537451912 | AA9: 0.5553348136 | AB9: 0.5618790629 | AC9: 0.5669882101 | AD9: 0.5723923197 | AE9: 0.5860840981 | AF9: 1.072340426 | AG9: 1.063829787 | AH9: 1.057446809 | AI9: 1.05106383 | AJ9: 1.04787234 | AK9: 1.044680851 | AL9: 1.038297872 | AM9: =Y9*C9+($A$4-80)*AF9*$A$8/1000 -> 15.05603231 | AN9: =Z9*E9+($A$4-80)*AG9*$A$8/1000 -> 14.82281676 | AO9: =AA9*G9+($A$4-80)*AH9*$A$8/1000 -> 14.39273094 | AP9: =AB9*I9+($A$4-80)*AI9*$A$8/1000 -> 13.8748107 | AQ9: =AC9*K9+($A$4-80)*AJ9*$A$8/1000 -> 13.61887935 | AR9: =AD9*M9+($A$4-80)*AK9*$A$8/1000 -> 13.36294801 | AS9: =AE9*O9+($A$4-80)*AL9*$A$8/1000 -> 12.96012115
B10: 67 | C10: 26.204947 | D10: 16.56133266 | E10: 25.55073195 | F10: 16.18576477 | G10: 24.69661787 | H10: 15.76779404 | I10: 23.63048965 | J10: 15.30136295 | K10: 22.99444725 | L10: 15.03180212 | M10: 22.35840485 | N10: 14.76224129 | O10: 20.88036345 | P10: 14.13831398 | R10: 1.091872792 | S10: 1.064613831 | T10: 1.029025745 | U10: 0.9846037355 | V10: 0.9581019687 | W10: 0.9316002019 | X10: 0.8700151439 | Y10: 0.6319926029 | Z10: 0.6334755808 | AA10: 0.6384596517 | AB10: 0.6475262753 | AC10: 0.6537144362 | AD10: 0.6602546735 | AE10: 0.6771105309 | AF10: 1.072340426 | AG10: 1.063829787 | AH10: 1.057446809 | AI10: 1.05106383 | AJ10: 1.04787234 | AK10: 1.044680851 | AL10: 1.038297872 | AM10: =Y10*C10+($A$4-80)*AF10*$A$8/1000 -> 16.56133266 | AN10: =Z10*E10+($A$4-80)*AG10*$A$8/1000 -> 16.18576477 | AO10: =AA10*G10+($A$4-80)*AH10*$A$8/1000 -> 15.76779404 | AP10: =AB10*I10+($A$4-80)*AI10*$A$8/1000 -> 15.30136295 | AQ10: =AC10*K10+($A$4-80)*AJ10*$A$8/1000 -> 15.03180212 | AR10: =AD10*M10+($A$4-80)*AK10*$A$8/1000 -> 14.76224129 | AS10: =AE10*O10+($A$4-80)*AL10*$A$8/1000 -> 14.13831398
B11: 62 | C11: 24.11509339 | D11: 19.34174659 | E11: 23.12771328 | F11: 18.85108531 | G11: 22.13427562 | H11: 18.36042403 | I11: 21.12872287 | J11: 17.8637052 | K11: 20.62594649 | L11: 17.60928824 | M11: 20.12317012 | N11: 17.35487128 | O11: 19.10550227 | P11: 16.82786471 | R11: 1.004795558 | S11: 0.9636547198 | T11: 0.9222614841 | U11: 0.8803634528 | V11: 0.8594144372 | W11: 0.8384654215 | X11: 0.7960625946 | Y11: 0.802059784 | Z11: 0.8150864327 | AA11: 0.8295019157 | AB11: 0.8454701835 | AC11: 0.8537444934 | AD11: 0.8624322697 | AE11: 0.8807863031 | AF11: 1.072340426 | AG11: 1.063829787 | AH11: 1.057446809 | AI11: 1.05106383 | AJ11: 1.04787234 | AK11: 1.044680851 | AL11: 1.038297872 | AM11: =Y11*C11+($A$4-80)*AF11*$A$8/1000 -> 19.34174659 | AN11: =Z11*E11+($A$4-80)*AG11*$A$8/1000 -> 18.85108531 | AO11: =AA11*G11+($A$4-80)*AH11*$A$8/1000 -> 18.36042403 | AP11: =AB11*I11+($A$4-80)*AI11*$A$8/1000 -> 17.8637052 | AQ11: =AC11*K11+($A$4-80)*AJ11*$A$8/1000 -> 17.60928824 | AR11: =AD11*M11+($A$4-80)*AK11*$A$8/1000 -> 17.35487128 | AS11: =AE11*O11+($A$4-80)*AL11*$A$8/1000 -> 16.82786471
A12: 1080 | B12: 72 | C12: 28.11913175 | D12: 14.01716305 | E12: 28.53710247 | F12: 14.04139324 | G12: 27.74356386 | H12: 13.62342251 | I12: 26.30792529 | J12: 13.02978294 | K12: 25.56284705 | L12: 12.77536598 | M12: 24.8177688 | N12: 12.52094902 | O12: 23.84250379 | P12: 12.38162544 | R12: 1.17163049 | S12: 1.189045936 | T12: 1.155981827 | U12: 1.096163554 | V12: 1.065118627 | W12: 1.0340737 | X12: 0.9934376577 | Y12: 0.4984920293 | Z12: 0.4920399066 | AA12: 0.4910480349 | AB12: 0.4952797605 | AC12: 0.4997630332 | AD12: 0.5045154991 | AE12: 0.5193089431 | AF12: 1.016981132 | AG12: 1.005660377 | AH12: 0.9981132075 | AI12: 0.9924528302 | AJ12: 0.9924528302 | AK12: 0.9924528302 | AL12: 0.9924528302 | AM12: =Y12*C12+($A$4-80)*AF12*$A$12/1000 -> 14.01716305 | AN12: =Z12*E12+($A$4-80)*AG12*$A$12/1000 -> 14.04139324 | AO12: =AA12*G12+($A$4-80)*AH12*$A$12/1000 -> 13.62342251 | AP12: =AB12*I12+($A$4-80)*AI12*$A$12/1000 -> 13.02978294 | AQ12: =AC12*K12+($A$4-80)*AJ12*$A$12/1000 -> 12.77536598 | AR12: =AD12*M12+($A$4-80)*AK12*$A$12/1000 -> 12.52094902 | AS12: =AE12*O12+($A$4-80)*AL12*$A$12/1000 -> 12.38162544
B13: 69.5 | C13: 27.28016153 | D13: 15.63452802 | E13: 27.18626956 | F13: 15.4891469 | G13: 26.38061585 | H13: 15.10146391 | I13: 25.15396265 | J13: 14.59565876 | K13: 24.47551742 | L13: 14.34578496 | M13: 23.79707219 | N13: 14.09591116 | O13: 22.59162039 | P13: 13.72942958 | R13: 1.136673397 | S13: 1.132761232 | T13: 1.099192327 | U13: 1.048081777 | V13: 1.019813226 | W13: 0.9915446744 | X13: 0.9413175164 | Y13: 0.5731098035 | Z13: 0.569741533 | AA13: 0.572445465 | AB13: 0.5802528597 | AC13: 0.5861279545 | AD13: 0.5923380425 | AE13: 0.6077222148 | AF13: 1.016981132 | AG13: 1.005660377 | AH13: 0.9981132075 | AI13: 0.9924528302 | AJ13: 0.9924528302 | AK13: 0.9924528302 | AL13: 0.9924528302 | AM13: =Y13*C13+($A$4-80)*AF13*$A$12/1000 -> 15.63452802 | AN13: =Z13*E13+($A$4-80)*AG13*$A$12/1000 -> 15.4891469 | AO13: =AA13*G13+($A$4-80)*AH13*$A$12/1000 -> 15.10146391 | AP13: =AB13*I13+($A$4-80)*AI13*$A$12/1000 -> 14.59565876 | AQ13: =AC13*K13+($A$4-80)*AJ13*$A$12/1000 -> 14.34578496 | AR13: =AD13*M13+($A$4-80)*AK13*$A$12/1000 -> 14.09591116 | AS13: =AE13*O13+($A$4-80)*AL13*$A$12/1000 -> 13.72942958
B14: 67 | C14: 26.44119132 | D14: 17.25189298 | E14: 25.83543665 | F14: 16.93690056 | G14: 25.01766784 | H14: 16.5795053 | I14: 24 | J14: 16.16153458 | K14: 23.38818778 | L14: 15.91620394 | M14: 22.77637557 | N14: 15.6708733 | O14: 21.340737 | P14: 15.07723372 | R14: 1.101716305 | S14: 1.076476527 | T14: 1.042402827 | U14: 1 | V14: 0.9745078243 | W14: 0.9490156487 | X14: 0.8891973751 | Y14: 0.6524627721 | Z14: 0.6555685815 | AA14: 0.6627118644 | AB14: 0.6733972741 | AC14: 0.6805231805 | AD14: 0.6880319149 | AE14: 0.7065001419 | AF14: 1.016981132 | AG14: 1.005660377 | AH14: 0.9981132075 | AI14: 0.9924528302 | AJ14: 0.9924528302 | AK14: 0.9924528302 | AL14: 0.9924528302 | AM14: =Y14*C14+($A$4-80)*AF14*$A$12/1000 -> 17.25189298 | AN14: =Z14*E14+($A$4-80)*AG14*$A$12/1000 -> 16.93690056 | AO14: =AA14*G14+($A$4-80)*AH14*$A$12/1000 -> 16.5795053 | AP14: =AB14*I14+($A$4-80)*AI14*$A$12/1000 -> 16.16153458 | AQ14: =AC14*K14+($A$4-80)*AJ14*$A$12/1000 -> 15.91620394 | AR14: =AD14*M14+($A$4-80)*AK14*$A$12/1000 -> 15.6708733 | AS14: =AE14*O14+($A$4-80)*AL14*$A$12/1000 -> 15.07723372
B15: 62 | C15: 24.7390207 | D15: 20.44422009 | E15: 23.76375568 | F15: 19.94750126 | G15: 22.75820293 | H15: 19.44472489 | I15: =U15*$I$14 -> 21.7163049 | J15: 18.92377587 | K15: 21.17718324 | L15: 18.65421504 | M15: 20.63806159 | N15: 18.38465422 | O15: 19.52347299 | P15: 17.80918728 | R15: 1.030792529 | S15: 0.9901564866 | T15: 0.9482584553 | U15: 0.9048460374 | V15: 0.882382635 | W15: 0.8599192327 | X15: 0.8134780414 | Y15: 0.8263956905 | Z15: 0.8394086159 | AA15: 0.8544051105 | AB15: 0.8714086471 | AC15: 0.8808638444 | AD15: 0.890813032 | AE15: 0.9121936084 | AF15: 1.016981132 | AG15: 1.005660377 | AH15: 0.9981132075 | AI15: 0.9924528302 | AJ15: 0.9924528302 | AK15: 0.9924528302 | AL15: 0.9924528302 | AM15: =Y15*C15+($A$4-80)*AF15*$A$12/1000 -> 20.44422009 | AN15: =Z15*E15+($A$4-80)*AG15*$A$12/1000 -> 19.94750126 | AO15: =AA15*G15+($A$4-80)*AH15*$A$12/1000 -> 19.44472489 | AP15: =AB15*I15+($A$4-80)*AI15*$A$12/1000 -> 18.92377587 | AQ15: =AC15*K15+($A$4-80)*AJ15*$A$12/1000 -> 18.65421504 | AR15: =AD15*M15+($A$4-80)*AK15*$A$12/1000 -> 18.38465422 | AS15: =AE15*O15+($A$4-80)*AL15*$A$12/1000 -> 17.80918728
A16: 1160 | B16: 72 | C16: 28.41595154 | D16: 14.48965169 | E16: 29.10045432 | F16: 14.64714791 | G16: 28.36749117 | H16: 14.24734982 | I16: =U16*$I$14 -> 26.88339223 | J16: 13.62948006 | K16: 26.10499748 | L16: 13.36900555 | M16: 25.32660273 | N16: 13.10853104 | O16: 24.3634528 | P16: 13.00555275 | R16: 1.183997981 | S16: 1.21251893 | T16: 1.181978799 | U16: 1.120141343 | V16: 1.087708228 | W16: 1.055275114 | X16: 1.015143867 | Y16: 0.5099125986 | Z16: 0.5033305579 | AA16: 0.5022421525 | AB16: 0.5069851284 | AC16: 0.5121243764 | AD16: 0.5175795264 | AE16: 0.5338140229 | AF16: 0.9745762712 | AG16: 0.9593220339 | AH16: 0.9508474576 | AI16: 0.9491525424 | AJ16: 0.9508474576 | AK16: 0.9525423729 | AL16: 0.9576271186 | AM16: =Y16*C16+($A$4-80)*AF16*$A$16/1000 -> 14.48965169 | AN16: =Z16*E16+($A$4-80)*AG16*$A$16/1000 -> 14.64714791 | AO16: =AA16*G16+($A$4-80)*AH16*$A$16/1000 -> 14.24734982 | AP16: =AB16*I16+($A$4-80)*AI16*$A$16/1000 -> 13.62948006 | AQ16: =AC16*K16+($A$4-80)*AJ16*$A$16/1000 -> 13.36900555 | AR16: =AD16*M16+($A$4-80)*AK16*$A$16/1000 -> 13.10853104 | AS16: =AE16*O16+($A$4-80)*AL16*$A$16/1000 -> 13.00555275
B17: 69.5 | C17: 27.54669359 | D17: 16.2160525 | E17: 27.60726906 | F17: 16.16759213 | G17: 26.85916204 | H17: 15.81928319 | I17: =U17*$I$14 -> 25.62948006 | J17: 15.32559313 | K17: 24.94497728 | L17: 15.08329127 | M17: 24.26047451 | N17: 14.8409894 | O17: 23.08531045 | P17: 14.51388188 | R17: 1.1477789 | S17: 1.150302877 | T17: 1.119131752 | U17: 1.067895003 | V17: 1.039374054 | W17: 1.010853104 | X17: 0.9618879354 | Y17: 0.5886750962 | Z17: 0.5856280856 | AA17: 0.5889715832 | AB17: 0.5979673836 | AC17: 0.6046624575 | AD17: 0.6117353308 | AE17: 0.6287063763 | AF17: 0.9745762712 | AG17: 0.9593220339 | AH17: 0.9508474576 | AI17: 0.9491525424 | AJ17: 0.9508474576 | AK17: 0.9525423729 | AL17: 0.9576271186 | AM17: =Y17*C17+($A$4-80)*AF17*$A$16/1000 -> 16.2160525 | AN17: =Z17*E17+($A$4-80)*AG17*$A$16/1000 -> 16.16759213 | AO17: =AA17*G17+($A$4-80)*AH17*$A$16/1000 -> 15.81928319 | AP17: =AB17*I17+($A$4-80)*AI17*$A$16/1000 -> 15.32559313 | AQ17: =AC17*K17+($A$4-80)*AJ17*$A$16/1000 -> 15.08329127 | AR17: =AD17*M17+($A$4-80)*AK17*$A$16/1000 -> 14.8409894 | AS17: =AE17*O17+($A$4-80)*AL17*$A$16/1000 -> 14.51388188
B18: 67 | C18: 26.67743564 | D18: 17.94245331 | E18: 26.1140838 | F18: 17.68803635 | G18: 25.35083291 | H18: 17.39121656 | I18: =U18*$I$14 -> 24.3755679 | J18: 17.02170621 | K18: 23.78495709 | L18: 16.79757698 | M18: 23.19434629 | N18: 16.57344775 | O18: 21.8071681 | P18: 16.022211 | R18: 1.111559818 | S18: 1.088086825 | T18: 1.056284705 | U18: 1.015648662 | V18: 0.9910398788 | W18: 0.9664310954 | X18: 0.908632004 | Y18: 0.6725703906 | Z18: 0.6773370448 | AA18: 0.6860215054 | AB18: 0.6983101392 | AC18: 0.7062269196 | AD18: 0.7145468791 | AE18: 0.7347222222 | AF18: 0.9745762712 | AG18: 0.9593220339 | AH18: 0.9508474576 | AI18: 0.9491525424 | AJ18: 0.9508474576 | AK18: 0.9525423729 | AL18: 0.9576271186 | AM18: =Y18*C18+($A$4-80)*AF18*$A$16/1000 -> 17.94245331 | AN18: =Z18*E18+($A$4-80)*AG18*$A$16/1000 -> 17.68803635 | AO18: =AA18*G18+($A$4-80)*AH18*$A$16/1000 -> 17.39121656 | AP18: =AB18*I18+($A$4-80)*AI18*$A$16/1000 -> 17.02170621 | AQ18: =AC18*K18+($A$4-80)*AJ18*$A$16/1000 -> 16.79757698 | AR18: =AD18*M18+($A$4-80)*AK18*$A$16/1000 -> 16.57344775 | AS18: =AE18*O18+($A$4-80)*AL18*$A$16/1000 -> 16.022211
B19: 62 | C19: 25.35689046 | D19: 21.58303887 | E19: 24.39979808 | F19: 21.07420495 | G19: 23.38213024 | H19: 20.55325593 | I19: =U19*$I$14 -> 22.29782938 | J19: 20.01413428 | K19: 21.72236244 | L19: 19.72942958 | M19: 21.14689551 | N19: 19.44472489 | O19: 19.93538617 | P19: 18.82079758 | R19: 1.056537102 | S19: 1.016658253 | T19: 0.9742554266 | U19: 0.9290762241 | V19: 0.9050984351 | W19: 0.8811206461 | X19: 0.8306410904 | Y19: 0.8511705686 | Z19: 0.8637040715 | AA19: 0.879015544 | AB19: 0.8975821788 | AC19: 0.9082543224 | AD19: 0.9195073045 | AE19: 0.9440899423 | AF19: 0.9745762712 | AG19: 0.9593220339 | AH19: 0.9508474576 | AI19: 0.9491525424 | AJ19: 0.9508474576 | AK19: 0.9525423729 | AL19: 0.9576271186 | AM19: =Y19*C19+($A$4-80)*AF19*$A$16/1000 -> 21.58303887 | AN19: =Z19*E19+($A$4-80)*AG19*$A$16/1000 -> 21.07420495 | AO19: =AA19*G19+($A$4-80)*AH19*$A$16/1000 -> 20.55325593 | AP19: =AB19*I19+($A$4-80)*AI19*$A$16/1000 -> 20.01413428 | AQ19: =AC19*K19+($A$4-80)*AJ19*$A$16/1000 -> 19.72942958 | AR19: =AD19*M19+($A$4-80)*AK19*$A$16/1000 -> 19.44472489 | AS19: =AE19*O19+($A$4-80)*AL19*$A$16/1000 -> 18.82079758

Sheet PSA4BG_48 (hidden)
A2: PSA4BG_48
A3: Evaporator Air | C3: Condenser Entering Air Temperature ˚F
A4: 80 | B4: °F DB | C4: 65 | E4: 75 | G4: 85 | I4: 95 | K4: 100 | M4: 105 | O4: 115
A5: CFM | B5: EWB† ˚F | C5: Capacity Mbtuh | E5: Capacity Mbtuh | G5: Capacity Mbtuh | I5: Capacity Mbtuh | K5: Capacity Mbtuh | M5: Capacity Mbtuh | O5: Capacity Mbtuh
C6: Total | D6: Sens. | E6: Total | F6: Sens. | G6: Total | H6: Sens. | I6: Total | J6: Sens. | K6: Total | L6: Sens. | M6: Total | N6: Sens. | O6: Total | P6: Sens.
R7: Total Factors | Y7: Sens. % | AF7: IDB Adj | AM7: Sens Calc
A8: 1285 | B8: 72 | C8: =R8*$I$14 -> 27.4344907 | D8: =IF(AM8>C8,C8,AM8) -> 13.59524266 | E8: =S8*$I$14 -> 28.00997506 | F8: =IF(AN8>E8,E8,AN8) -> 13.61826204 | G8: =T8*$I$14 -> 26.96949933 | H8: =IF(AO8>G8,G8,AO8) -> 13.06579705 | I8: =U8*$I$14 -> 25.42720123 | J8: =IF(AP8>I8,I8,AP8) -> 12.47189718 | K8: =V8*$I$14 -> 24.9645118 | L8: =IF(AQ8>K8,K8,AQ8) -> 12.41434874 | M8: =W8*$I$14 -> 24.50182237 | N8: =IF(AR8>M8,M8,AR8) -> 12.35680031 | O8: =X8*$I$14 -> 19.74141569 | P8: =IF(AS8>O8,O8,AS8) -> 10.37713409 | R8: 1.143103779 | S8: 1.167082294 | T8: 1.123729139 | U8: 1.059466718 | V8: 1.040187992 | W8: 1.020909265 | X8: 0.8225589871 | Y8: 0.4955529451 | Z8: 0.4861932939 | AA8: 0.4844656879 | AB8: 0.4904942966 | AC8: 0.4972798525 | AD8: 0.5043216836 | AE8: 0.5256529851 | AF8: 1.039688716 | AG8: 1.070817121 | AH8: 1.106614786 | AI8: 1.058365759 | AJ8: 0.9470817121 | AK8: 0.8357976654 | AL8: 0.8560311284 | AM8: =Y8*C8+($A$4-80)*AF8*$A$8/1000 -> 13.59524266 | AN8: =Z8*E8+($A$4-80)*AG8*$A$8/1000 -> 13.61826204 | AO8: =AA8*G8+($A$4-80)*AH8*$A$8/1000 -> 13.06579705 | AP8: =AB8*I8+($A$4-80)*AI8*$A$8/1000 -> 12.47189718 | AQ8: =AC8*K8+($A$4-80)*AJ8*$A$8/1000 -> 12.41434874 | AR8: =AD8*M8+($A$4-80)*AK8*$A$8/1000 -> 12.35680031 | AS8: =AE8*O8+($A$4-80)*AL8*$A$8/1000 -> 10.37713409
B9: 69.5 | C9: 26.72319202 | D9: 15.27105314 | E9: 26.94647995 | F9: 15.20199501 | G9: 25.95434491 | H9: 14.71398427 | I9: 24.36600806 | J9: 14.08785728 | K9: 23.58334932 | L9: 13.8369461 | M9: 22.80069058 | N9: 13.58603491 | O9: 19.17513908 | P9: 12.08286975 | R9: 1.113466334 | S9: 1.122769998 | T9: 1.081431038 | U9: 1.015250336 | V9: 0.982639555 | W9: 0.9500287742 | X9: 0.7989641281 | Y9: 0.5714531829 | Z9: 0.5641551341 | AA9: 0.5669179601 | AB9: 0.5781766651 | AC9: 0.5867252318 | AD9: 0.5958606764 | AE9: 0.6301320528 | AF9: 1.039688716 | AG9: 1.070817121 | AH9: 1.106614786 | AI9: 1.058365759 | AJ9: 0.9470817121 | AK9: 0.8357976654 | AL9: 0.8560311284 | AM9: =Y9*C9+($A$4-80)*AF9*$A$8/1000 -> 15.27105314 | AN9: =Z9*E9+($A$4-80)*AG9*$A$8/1000 -> 15.20199501 | AO9: =AA9*G9+($A$4-80)*AH9*$A$8/1000 -> 14.71398427 | AP9: =AB9*I9+($A$4-80)*AI9*$A$8/1000 -> 14.08785728 | AQ9: =AC9*K9+($A$4-80)*AJ9*$A$8/1000 -> 13.8369461 | AR9: =AD9*M9+($A$4-80)*AK9*$A$8/1000 -> 13.58603491 | AS9: =AE9*O9+($A$4-80)*AL9*$A$8/1000 -> 12.08286975
B10: 67 | C10: 26.01189334 | D10: 16.94686361 | E10: 25.88298485 | F10: 16.78572799 | G10: 24.93919049 | H10: 16.36217149 | I10: 23.30481489 | J10: 15.70381738 | K10: 22.20218684 | L10: 15.25954345 | M10: 21.0995588 | N10: 14.81526952 | O10: 18.60886246 | P10: 13.78860541 | R10: 1.083828889 | S10: 1.078457702 | T10: 1.039132937 | U10: 0.9710339536 | V10: 0.9250911184 | W10: 0.8791482831 | X10: 0.7753692691 | Y10: 0.6515044248 | Z10: 0.6485236571 | AA10: 0.6560827026 | AB10: 0.6738443303 | AC10: 0.6872991187 | AD10: 0.7021601571 | AE10: 0.7409698169 | AF10: 1.039688716 | AG10: 1.070817121 | AH10: 1.106614786 | AI10: 1.058365759 | AJ10: 0.9470817121 | AK10: 0.8357976654 | AL10: 0.8560311284 | AM10: =Y10*C10+($A$4-80)*AF10*$A$8/1000 -> 16.94686361 | AN10: =Z10*E10+($A$4-80)*AG10*$A$8/1000 -> 16.78572799 | AO10: =AA10*G10+($A$4-80)*AH10*$A$8/1000 -> 16.36217149 | AP10: =AB10*I10+($A$4-80)*AI10*$A$8/1000 -> 15.70381738 | AQ10: =AC10*K10+($A$4-80)*AJ10*$A$8/1000 -> 15.25954345 | AR10: =AD10*M10+($A$4-80)*AK10*$A$8/1000 -> 14.81526952 | AS10: =AE10*O10+($A$4-80)*AL10*$A$8/1000 -> 13.78860541
B11: 62 | C11: 24.16113562 | D11: 19.89794744 | E11: 23.41070401 | F11: 19.55726069 | G11: 22.57740265 | H11: 19.18434683 | I11: 21.44945329 | J11: 18.58584308 | K11: 20.6391713 | L11: 18.07481297 | M11: 19.82888932 | N11: 17.56378285 | O11: 17.01131786 | P11: 15.43679263 | R11: 1.006713984 | S11: 0.9754460004 | T11: 0.9407251103 | U11: 0.8937272204 | V11: 0.8599654709 | W11: 0.8262037215 | X11: 0.7088049108 | Y11: 0.8235518293 | Z11: 0.8353982301 | AA11: 0.8497145188 | AB11: 0.866494956 | AC11: 0.8757528441 | AD11: 0.8857673555 | AE11: 0.9074424899 | AF11: 1.039688716 | AG11: 1.070817121 | AH11: 1.106614786 | AI11: 1.058365759 | AJ11: 0.9470817121 | AK11: 0.8357976654 | AL11: 0.8560311284 | AM11: =Y11*C11+($A$4-80)*AF11*$A$8/1000 -> 19.89794744 | AN11: =Z11*E11+($A$4-80)*AG11*$A$8/1000 -> 19.55726069 | AO11: =AA11*G11+($A$4-80)*AH11*$A$8/1000 -> 19.18434683 | AP11: =AB11*I11+($A$4-80)*AI11*$A$8/1000 -> 18.58584308 | AQ11: =AC11*K11+($A$4-80)*AJ11*$A$8/1000 -> 18.07481297 | AR11: =AD11*M11+($A$4-80)*AK11*$A$8/1000 -> 17.56378285 | AS11: =AE11*O11+($A$4-80)*AL11*$A$8/1000 -> 15.43679263
A12: 1480 | B12: 72 | C12: 27.44369845 | D12: 13.98657203 | E12: 28.19873393 | F12: 14.22597353 | G12: 27.31478995 | H12: 13.79781316 | I12: 25.88298485 | J12: 13.23614042 | K12: 25.43640898 | L12: 13.15787454 | M12: 24.98983311 | N12: 13.07960867 | O12: 20.67139843 | P12: 11.1828122 | R12: 1.143487435 | S12: 1.174947247 | T12: 1.138116248 | U12: 1.078457702 | V12: 1.059850374 | W12: 1.041243046 | X12: 0.8613082678 | Y12: 0.5096460325 | Z12: 0.5044897959 | AA12: 0.5051407382 | AB12: 0.5113838492 | AC12: 0.5172850679 | AD12: 0.5233971997 | AE12: 0.5409799555 | AF12: 1.004054054 | AG12: 1.033783784 | AH12: 1.072972973 | AI12: 1.041891892 | AJ12: 0.947972973 | AK12: 0.8540540541 | AL12: 0.9716216216 | AM12: =Y12*C12+($A$4-80)*AF12*$A$12/1000 -> 13.98657203 | AN12: =Z12*E12+($A$4-80)*AG12*$A$12/1000 -> 14.22597353 | AO12: =AA12*G12+($A$4-80)*AH12*$A$12/1000 -> 13.79781316 | AP12: =AB12*I12+($A$4-80)*AI12*$A$12/1000 -> 13.23614042 | AQ12: =AC12*K12+($A$4-80)*AJ12*$A$12/1000 -> 13.15787454 | AR12: =AD12*M12+($A$4-80)*AK12*$A$12/1000 -> 13.07960867 | AS12: =AE12*O12+($A$4-80)*AL12*$A$12/1000 -> 11.1828122
B13: 69.5 | C13: 26.83598696 | D13: 15.81200844 | E13: 27.30328026 | F13: 16.04450412 | G13: 26.52292346 | H13: 15.73374257 | I13: 24.94149242 | J13: 15.05467101 | K13: 24.07020909 | L13: 14.68060618 | M13: 23.19892576 | N13: 14.30654134 | O13: 19.79666219 | P13: 12.72741224 | R13: 1.118166123 | S13: 1.137636678 | T13: 1.105121811 | U13: 1.039228851 | V13: 1.002925379 | W13: 0.9666219068 | X13: 0.8248609246 | Y13: 0.5892091268 | Z13: 0.5876401652 | AA13: 0.5932129839 | AB13: 0.6035994462 | AC13: 0.6099077129 | AD13: 0.6166898194 | AE13: 0.6429069767 | AF13: 1.004054054 | AG13: 1.033783784 | AH13: 1.072972973 | AI13: 1.041891892 | AJ13: 0.947972973 | AK13: 0.8540540541 | AL13: 0.9716216216 | AM13: =Y13*C13+($A$4-80)*AF13*$A$12/1000 -> 15.81200844 | AN13: =Z13*E13+($A$4-80)*AG13*$A$12/1000 -> 16.04450412 | AO13: =AA13*G13+($A$4-80)*AH13*$A$12/1000 -> 15.73374257 | AP13: =AB13*I13+($A$4-80)*AI13*$A$12/1000 -> 15.05467101 | AQ13: =AC13*K13+($A$4-80)*AJ13*$A$12/1000 -> 14.68060618 | AR13: =AD13*M13+($A$4-80)*AK13*$A$12/1000 -> 14.30654134 | AS13: =AE13*O13+($A$4-80)*AL13*$A$12/1000 -> 12.72741224
B14: 67 | C14: 26.22827547 | D14: 17.63744485 | E14: 26.40782659 | F14: 17.86303472 | G14: 25.73105697 | H14: 17.66967197 | I14: 24 | J14: 16.87320161 | K14: 22.70400921 | L14: 16.20333781 | M14: 21.40801842 | N14: 15.53347401 | O14: 18.92192595 | P14: 14.27201228 | R14: 1.092844811 | S14: 1.100326108 | T14: 1.072127374 | U14: 1 | V14: 0.9460003837 | W14: 0.8920007673 | X14: 0.7884135814 | Y14: 0.672459189 | Z14: 0.6764295676 | AA14: 0.6867060297 | AB14: 0.7030500671 | AC14: 0.7136773801 | AD14: 0.7255913978 | AE14: 0.7542579075 | AF14: 1.004054054 | AG14: 1.033783784 | AH14: 1.072972973 | AI14: 1.041891892 | AJ14: 0.947972973 | AK14: 0.8540540541 | AL14: 0.9716216216 | AM14: =Y14*C14+($A$4-80)*AF14*$A$12/1000 -> 17.63744485 | AN14: =Z14*E14+($A$4-80)*AG14*$A$12/1000 -> 17.86303472 | AO14: =AA14*G14+($A$4-80)*AH14*$A$12/1000 -> 17.66967197 | AP14: =AB14*I14+($A$4-80)*AI14*$A$12/1000 -> 16.87320161 | AQ14: =AC14*K14+($A$4-80)*AJ14*$A$12/1000 -> 16.20333781 | AR14: =AD14*M14+($A$4-80)*AK14*$A$12/1000 -> 15.53347401 | AS14: =AE14*O14+($A$4-80)*AL14*$A$12/1000 -> 14.27201228
B15: 62 | C15: 24.68597736 | D15: 21.12718204 | E15: 24.04143487 | F15: 20.96144255 | G15: 23.13907539 | H15: 20.56090543 | I15: =U15*$I$14 -> 21.94667178 | J15: 19.87953194 | K15: 21.18703242 | L15: 19.3731057 | M15: 20.42739306 | N15: 18.86667946 | O15: 17.52695185 | P15: 16.51409937 | R15: 1.02858239 | S15: 1.001726453 | T15: 0.9641281412 | U15: 0.9144446576 | V15: 0.8827930175 | W15: 0.8511413773 | X15: 0.7302896605 | Y15: 0.8558373741 | Z15: 0.8718881655 | AA15: 0.8885793872 | AB15: 0.9058107825 | AC15: 0.91438505 | AD15: 0.923597025 | AE15: 0.9422117153 | AF15: 1.004054054 | AG15: 1.033783784 | AH15: 1.072972973 | AI15: 1.041891892 | AJ15: 0.947972973 | AK15: 0.8540540541 | AL15: 0.9716216216 | AM15: =Y15*C15+($A$4-80)*AF15*$A$12/1000 -> 21.12718204 | AN15: =Z15*E15+($A$4-80)*AG15*$A$12/1000 -> 20.96144255 | AO15: =AA15*G15+($A$4-80)*AH15*$A$12/1000 -> 20.56090543 | AP15: =AB15*I15+($A$4-80)*AI15*$A$12/1000 -> 19.87953194 | AQ15: =AC15*K15+($A$4-80)*AJ15*$A$12/1000 -> 19.3731057 | AR15: =AD15*M15+($A$4-80)*AK15*$A$12/1000 -> 18.86667946 | AS15: =AE15*O15+($A$4-80)*AL15*$A$12/1000 -> 16.51409937
A16: 1610 | B16: 72 | C16: 27.44830232 | D16: 14.24438903 | E16: 28.30001918 | F16: 14.62190677 | G16: 27.51275657 | H16: 14.27661615 | I16: =U16*$I$14 -> 26.14540572 | J16: 13.73335891 | K16: 25.70573566 | L16: 13.63897947 | M16: 25.26606561 | N16: 13.54460004 | O16: 20.74506043 | P16: 11.43602532 | R16: 1.143679263 | S16: 1.179167466 | T16: 1.146364857 | U16: 1.089391905 | V16: 1.071072319 | W16: 1.052752734 | X16: 0.8643775177 | Y16: 0.5189533714 | Z16: 0.5166748007 | AA16: 0.5189089692 | AB16: 0.5252685332 | AC16: 0.5305811767 | AD16: 0.5360787172 | AE16: 0.55126498 | AF16: 0.9875776398 | AG16: 1.016149068 | AH16: 1.058385093 | AI16: 1.036024845 | AJ16: 0.952173913 | AK16: 0.8683229814 | AL16: 1.036024845 | AM16: =Y16*C16+($A$4-80)*AF16*$A$16/1000 -> 14.24438903 | AN16: =Z16*E16+($A$4-80)*AG16*$A$16/1000 -> 14.62190677 | AO16: =AA16*G16+($A$4-80)*AH16*$A$16/1000 -> 14.27661615 | AP16: =AB16*I16+($A$4-80)*AI16*$A$16/1000 -> 13.73335891 | AQ16: =AC16*K16+($A$4-80)*AJ16*$A$16/1000 -> 13.63897947 | AR16: =AD16*M16+($A$4-80)*AK16*$A$16/1000 -> 13.54460004 | AS16: =AE16*O16+($A$4-80)*AL16*$A$16/1000 -> 11.43602532
B17: 69.5 | C17: 27.03395358 | D17: 16.24247075 | E17: 27.57260694 | F17: 16.60617687 | G17: 26.7093804 | H17: 16.30462306 | I17: =U17*$I$14 -> 25.11874161 | J17: 15.67159026 | K17: 24.30385575 | L17: 15.35967773 | M17: 23.48896988 | N17: 15.0477652 | O17: 19.93477844 | P17: 13.38346442 | R17: 1.126414732 | S17: 1.148858623 | T17: 1.11289085 | U17: 1.046614234 | V17: 1.012660656 | W17: 0.9787070785 | X17: 0.8306157683 | Y17: 0.6008174387 | Z17: 0.6022708299 | AA17: 0.6104455744 | AB17: 0.6239002933 | AC17: 0.6319852245 | AD17: 0.640631125 | AE17: 0.6713625866 | AF17: 0.9875776398 | AG17: 1.016149068 | AH17: 1.058385093 | AI17: 1.036024845 | AJ17: 0.952173913 | AK17: 0.8683229814 | AL17: 1.036024845 | AM17: =Y17*C17+($A$4-80)*AF17*$A$16/1000 -> 16.24247075 | AN17: =Z17*E17+($A$4-80)*AG17*$A$16/1000 -> 16.60617687 | AO17: =AA17*G17+($A$4-80)*AH17*$A$16/1000 -> 16.30462306 | AP17: =AB17*I17+($A$4-80)*AI17*$A$16/1000 -> 15.67159026 | AQ17: =AC17*K17+($A$4-80)*AJ17*$A$16/1000 -> 15.35967773 | AR17: =AD17*M17+($A$4-80)*AK17*$A$16/1000 -> 15.0477652 | AS17: =AE17*O17+($A$4-80)*AL17*$A$16/1000 -> 13.38346442
B18: 67 | C18: 26.61960483 | D18: 18.24055246 | E18: 26.84519471 | F18: 18.59044696 | G18: 25.90600422 | H18: 18.33262996 | I18: =U18*$I$14 -> 24.0920775 | J18: 17.6098216 | K18: 22.90197583 | L18: 17.08037598 | M18: 21.71187416 | N18: 16.55093037 | O18: 19.12449645 | P18: 15.33090351 | R18: 1.109150201 | S18: 1.118549779 | T18: 1.079416843 | U18: 1.003836562 | V18: 0.9542489929 | W18: 0.9046614234 | X18: 0.7968540188 | Y18: 0.6852300242 | Z18: 0.6925055737 | AA18: 0.7076594988 | AB18: 0.7309382763 | AC18: 0.7458035984 | AD18: 0.7622985581 | AE18: 0.8016369764 | AF18: 0.9875776398 | AG18: 1.016149068 | AH18: 1.058385093 | AI18: 1.036024845 | AJ18: 0.952173913 | AK18: 0.8683229814 | AL18: 1.036024845 | AM18: =Y18*C18+($A$4-80)*AF18*$A$16/1000 -> 18.24055246 | AN18: =Z18*E18+($A$4-80)*AG18*$A$16/1000 -> 18.59044696 | AO18: =AA18*G18+($A$4-80)*AH18*$A$16/1000 -> 18.33262996 | AP18: =AB18*I18+($A$4-80)*AI18*$A$16/1000 -> 17.6098216 | AQ18: =AC18*K18+($A$4-80)*AJ18*$A$16/1000 -> 17.08037598 | AR18: =AD18*M18+($A$4-80)*AK18*$A$16/1000 -> 16.55093037 | AS18: =AE18*O18+($A$4-80)*AL18*$A$16/1000 -> 15.33090351
B19: 62 | C19: 25.03587186 | D19: 21.96969116 | E19: 24.45578362 | F19: 21.92365241 | G19: 23.51198926 | H19: 21.50469979 | I19: =U19*$I$14 -> 22.2735469 | J19: 20.76347593 | K19: 21.5484366 | L19: 20.26165356 | M19: 20.8233263 | N19: 19.75983119 | O19: 17.87224247 | P19: 17.24611548 | R19: 1.043161327 | S19: 1.018990984 | T19: 0.9796662191 | U19: 0.9280644542 | V19: 0.897851525 | W19: 0.8676385958 | X19: 0.7446767696 | Y19: 0.8775285031 | Z19: 0.8964608434 | AA19: 0.9146269826 | AB19: 0.9322033898 | AC19: 0.9402841577 | AD19: 0.9489277029 | AE19: 0.9649665121 | AF19: 0.9875776398 | AG19: 1.016149068 | AH19: 1.058385093 | AI19: 1.036024845 | AJ19: 0.952173913 | AK19: 0.8683229814 | AL19: 1.036024845 | AM19: =Y19*C19+($A$4-80)*AF19*$A$16/1000 -> 21.96969116 | AN19: =Z19*E19+($A$4-80)*AG19*$A$16/1000 -> 21.92365241 | AO19: =AA19*G19+($A$4-80)*AH19*$A$16/1000 -> 21.50469979 | AP19: =AB19*I19+($A$4-80)*AI19*$A$16/1000 -> 20.76347593 | AQ19: =AC19*K19+($A$4-80)*AJ19*$A$16/1000 -> 20.26165356 | AR19: =AD19*M19+($A$4-80)*AK19*$A$16/1000 -> 19.75983119 | AS19: =AE19*O19+($A$4-80)*AL19*$A$16/1000 -> 17.24611548

Sheet PSA4BG_60 (hidden)
A2: PSA4BG_60
A3: Evaporator Air | C3: Condenser Entering Air Temperature ˚F
A4: 80 | B4: °F DB | C4: 65 | E4: 75 | G4: 85 | I4: 95 | K4: 100 | M4: 105 | O4: 115
A5: CFM | B5: EWB† ˚F | C5: Capacity Mbtuh | E5: Capacity Mbtuh | G5: Capacity Mbtuh | I5: Capacity Mbtuh | K5: Capacity Mbtuh | M5: Capacity Mbtuh | O5: Capacity Mbtuh
C6: Total | D6: Sens. | E6: Total | F6: Sens. | G6: Total | H6: Sens. | I6: Total | J6: Sens. | K6: Total | L6: Sens. | M6: Total | N6: Sens. | O6: Total | P6: Sens.
R7: Total Factors | Y7: Sens. % | AF7: IDB Adj | AM7: Sens Calc
A8: 1480 | B8: 72 | C8: =R8*$I$14 -> 27.59018759 | D8: =IF(AM8>C8,C8,AM8) -> 14.18374218 | E8: =S8*$I$14 -> 27.61712362 | F8: =IF(AN8>E8,E8,AN8) -> 13.95670996 | G8: =T8*$I$14 -> 26.9013949 | H8: =IF(AO8>G8,G8,AO8) -> 13.44492544 | I8: =U8*$I$14 -> 25.68542569 | J8: =IF(AP8>I8,I8,AP8) -> 12.76767677 | K8: =V8*$I$14 -> 24.94468494 | L8: =IF(AQ8>K8,K8,AQ8) -> 12.4021164 | M8: =W8*$I$14 -> 24.2039442 | N8: =IF(AR8>M8,M8,AR8) -> 12.03655604 | O8: =X8*$I$14 -> 22.6955267 | P8: =IF(AS8>O8,O8,AS8) -> 11.35930736 | R8: 1.14959115 | S8: 1.150713484 | T8: 1.120891454 | U8: 1.07022607 | V8: 1.039361873 | W8: 1.008497675 | X8: 0.9456469456 | Y8: 0.5140864714 | Z8: 0.5053643584 | AA8: 0.4997854384 | AB8: 0.4970786517 | AC8: 0.4971847281 | AD8: 0.4972972973 | AE8: 0.500508647 | AF8: 1.114864865 | AG8: 1.07027027 | AH8: 1.066216216 | AI8: 1.07972973 | AJ8: 1.082432432 | AK8: 1.085135135 | AL8: 1.055405405 | AM8: =Y8*C8+($A$4-80)*AF8*$A$8/1000 -> 14.18374218 | AN8: =Z8*E8+($A$4-80)*AG8*$A$8/1000 -> 13.95670996 | AO8: =AA8*G8+($A$4-80)*AH8*$A$8/1000 -> 13.44492544 | AP8: =AB8*I8+($A$4-80)*AI8*$A$8/1000 -> 12.76767677 | AQ8: =AC8*K8+($A$4-80)*AJ8*$A$8/1000 -> 12.4021164 | AR8: =AD8*M8+($A$4-80)*AK8*$A$8/1000 -> 12.03655604 | AS8: =AE8*O8+($A$4-80)*AL8*$A$8/1000 -> 11.35930736
B9: 69.5 | C9: 27.09187109 | D9: 15.46512747 | E9: 26.77633478 | F9: 15.20923521 | G9: 25.90668591 | H9: 14.72823473 | I9: 24.65800866 | J9: 14.10870611 | K9: 23.93169793 | L9: 13.77008177 | M9: 23.20538721 | N9: 13.43145743 | O9: 21.72198172 | P9: 12.78306878 | R9: 1.128827962 | S9: 1.115680616 | T9: 1.079445246 | U9: 1.027417027 | V9: 0.9971540805 | W9: 0.9668911336 | X9: 0.9050825717 | Y9: 0.5708401392 | Z9: 0.5680103471 | AA9: 0.5685109543 | AB9: 0.5721754057 | AC9: 0.5753909233 | AD9: 0.5788077274 | AE9: 0.5884853853 | AF9: 1.114864865 | AG9: 1.07027027 | AH9: 1.066216216 | AI9: 1.07972973 | AJ9: 1.082432432 | AK9: 1.085135135 | AL9: 1.055405405 | AM9: =Y9*C9+($A$4-80)*AF9*$A$8/1000 -> 15.46512747 | AN9: =Z9*E9+($A$4-80)*AG9*$A$8/1000 -> 15.20923521 | AO9: =AA9*G9+($A$4-80)*AH9*$A$8/1000 -> 14.72823473 | AP9: =AB9*I9+($A$4-80)*AI9*$A$8/1000 -> 14.10870611 | AQ9: =AC9*K9+($A$4-80)*AJ9*$A$8/1000 -> 13.77008177 | AR9: =AD9*M9+($A$4-80)*AK9*$A$8/1000 -> 13.43145743 | AS9: =AE9*O9+($A$4-80)*AL9*$A$8/1000 -> 12.78306878
B10: 67 | C10: 26.59355459 | D10: 16.74651275 | E10: 25.93554594 | F10: 16.46176046 | G10: 24.91197691 | H10: 16.01154401 | I10: 23.63059163 | J10: 15.44973545 | K10: 22.91871092 | L10: 15.13804714 | M10: 22.20683021 | N10: 14.82635883 | O10: 20.74843675 | P10: 14.20683021 | R10: 1.108064775 | S10: 1.080647747 | T10: 1.037999038 | U10: 0.9846079846 | V10: 0.9549462883 | W10: 0.925284592 | X10: 0.8645181979 | Y10: 0.6297207351 | Z10: 0.6347181009 | AA10: 0.6427247451 | AB10: 0.6538023123 | AC10: 0.6605104097 | AD10: 0.6676485878 | AE10: 0.6847181009 | AF10: 1.114864865 | AG10: 1.07027027 | AH10: 1.066216216 | AI10: 1.07972973 | AJ10: 1.082432432 | AK10: 1.085135135 | AL10: 1.055405405 | AM10: =Y10*C10+($A$4-80)*AF10*$A$8/1000 -> 16.74651275 | AN10: =Z10*E10+($A$4-80)*AG10*$A$8/1000 -> 16.46176046 | AO10: =AA10*G10+($A$4-80)*AH10*$A$8/1000 -> 16.01154401 | AP10: =AB10*I10+($A$4-80)*AI10*$A$8/1000 -> 15.44973545 | AQ10: =AC10*K10+($A$4-80)*AJ10*$A$8/1000 -> 15.13804714 | AR10: =AD10*M10+($A$4-80)*AK10*$A$8/1000 -> 14.82635883 | AS10: =AE10*O10+($A$4-80)*AL10*$A$8/1000 -> 14.20683021
B11: 62 | C11: 24.61183261 | D11: 19.76334776 | E11: 23.68831169 | F11: 19.24771525 | G11: 22.66474266 | H11: 18.73593074 | I11: 21.54882155 | J11: 18.22029822 | K11: 20.94853295 | L11: 17.95093795 | M11: 20.34824435 | N11: 17.68157768 | O11: 19.07070707 | P11: 17.1043771 | R11: 1.025493025 | S11: 0.987012987 | T11: 0.9443642777 | U11: 0.8978675645 | V11: 0.8728555395 | W11: 0.8478435145 | X11: 0.7946127946 | Y11: 0.8030018762 | Z11: 0.8125406108 | AA11: 0.826655348 | AB11: 0.8455357143 | AC11: 0.8569066863 | AD11: 0.8689485628 | AE11: 0.8968926554 | AF11: 1.114864865 | AG11: 1.07027027 | AH11: 1.066216216 | AI11: 1.07972973 | AJ11: 1.082432432 | AK11: 1.085135135 | AL11: 1.055405405 | AM11: =Y11*C11+($A$4-80)*AF11*$A$8/1000 -> 19.76334776 | AN11: =Z11*E11+($A$4-80)*AG11*$A$8/1000 -> 19.24771525 | AO11: =AA11*G11+($A$4-80)*AH11*$A$8/1000 -> 18.73593074 | AP11: =AB11*I11+($A$4-80)*AI11*$A$8/1000 -> 18.22029822 | AQ11: =AC11*K11+($A$4-80)*AJ11*$A$8/1000 -> 17.95093795 | AR11: =AD11*M11+($A$4-80)*AK11*$A$8/1000 -> 17.68157768 | AS11: =AE11*O11+($A$4-80)*AL11*$A$8/1000 -> 17.1043771
A12: 1610 | B12: 72 | C12: 27.82876383 | D12: 14.33766234 | E12: 28.04040404 | F12: 14.25685426 | G12: 27.37854738 | H12: 13.82202982 | I12: 26.10870611 | J12: 13.16402116 | K12: 25.3006253 | L12: 12.78884079 | M12: 24.49254449 | N12: 12.41366041 | O12: 22.78787879 | P12: 11.68253968 | R12: 1.159531826 | S12: 1.168350168 | T12: 1.140772807 | U12: 1.087862755 | V12: 1.054192721 | W12: 1.020522687 | X12: 0.9494949495 | Y12: 0.515210177 | Z12: 0.5084396871 | AA12: 0.5048489108 | AB12: 0.5042004422 | AC12: 0.5054752852 | AD12: 0.5068342498 | AE12: 0.5126646403 | AF12: 1.110559006 | AG12: 1.062111801 | AH12: 1.057142857 | AI12: 1.068322981 | AJ12: 1.069565217 | AK12: 1.070807453 | AL12: 1.036024845 | AM12: =Y12*C12+($A$4-80)*AF12*$A$12/1000 -> 14.33766234 | AN12: =Z12*E12+($A$4-80)*AG12*$A$12/1000 -> 14.25685426 | AO12: =AA12*G12+($A$4-80)*AH12*$A$12/1000 -> 13.82202982 | AP12: =AB12*I12+($A$4-80)*AI12*$A$12/1000 -> 13.16402116 | AQ12: =AC12*K12+($A$4-80)*AJ12*$A$12/1000 -> 12.78884079 | AR12: =AD12*M12+($A$4-80)*AK12*$A$12/1000 -> 12.41366041 | AS12: =AE12*O12+($A$4-80)*AL12*$A$12/1000 -> 11.68253968
B13: 69.5 | C13: 27.36892737 | D13: 15.80759981 | E13: 27.21115921 | F13: 15.66714767 | G13: 26.36459836 | H13: 15.22462722 | I13: 25.05435305 | J13: 14.59355459 | K13: 24.27705628 | L13: 14.24050024 | M13: 23.4997595 | N13: 13.88744589 | O13: 21.92015392 | P13: 13.21789322 | R13: 1.140371974 | S13: 1.1337983 | T13: 1.098524932 | U13: 1.043931377 | V13: 1.011544012 | W13: 0.9791566458 | X13: 0.9133397467 | Y13: 0.5775746924 | Z13: 0.575761861 | AA13: 0.5774647887 | AB13: 0.5824758102 | AC13: 0.5865826597 | AD13: 0.5909611921 | AE13: 0.6030018432 | AF13: 1.110559006 | AG13: 1.062111801 | AH13: 1.057142857 | AI13: 1.068322981 | AJ13: 1.069565217 | AK13: 1.070807453 | AL13: 1.036024845 | AM13: =Y13*C13+($A$4-80)*AF13*$A$12/1000 -> 15.80759981 | AN13: =Z13*E13+($A$4-80)*AG13*$A$12/1000 -> 15.66714767 | AO13: =AA13*G13+($A$4-80)*AH13*$A$12/1000 -> 15.22462722 | AP13: =AB13*I13+($A$4-80)*AI13*$A$12/1000 -> 14.59355459 | AQ13: =AC13*K13+($A$4-80)*AJ13*$A$12/1000 -> 14.24050024 | AR13: =AD13*M13+($A$4-80)*AK13*$A$12/1000 -> 13.88744589 | AS13: =AE13*O13+($A$4-80)*AL13*$A$12/1000 -> 13.21789322
B14: 67 | C14: 26.90909091 | D14: 17.27753728 | E14: 26.38191438 | F14: 17.07744108 | G14: 25.35064935 | H14: 16.62722463 | I14: 24 | J14: 16.02308802 | K14: 23.25348725 | L14: 15.69215969 | M14: 22.50697451 | N14: 15.36123136 | O14: 21.05242905 | P14: 14.75324675 | R14: 1.121212121 | S14: 1.099246433 | T14: 1.056277056 | U14: 1 | V14: 0.9688953022 | W14: 0.9377906045 | X14: 0.8771845439 | Y14: 0.6420706421 | Z14: 0.6473162194 | AA14: 0.6558894961 | AB14: 0.6676286676 | AC14: 0.6748303823 | AD14: 0.6825098307 | AE14: 0.7007859623 | AF14: 1.110559006 | AG14: 1.062111801 | AH14: 1.057142857 | AI14: 1.068322981 | AJ14: 1.069565217 | AK14: 1.070807453 | AL14: 1.036024845 | AM14: =Y14*C14+($A$4-80)*AF14*$A$12/1000 -> 17.27753728 | AN14: =Z14*E14+($A$4-80)*AG14*$A$12/1000 -> 17.07744108 | AO14: =AA14*G14+($A$4-80)*AH14*$A$12/1000 -> 16.62722463 | AP14: =AB14*I14+($A$4-80)*AI14*$A$12/1000 -> 16.02308802 | AQ14: =AC14*K14+($A$4-80)*AJ14*$A$12/1000 -> 15.69215969 | AR14: =AD14*M14+($A$4-80)*AK14*$A$12/1000 -> 15.36123136 | AS14: =AE14*O14+($A$4-80)*AL14*$A$12/1000 -> 14.75324675
B15: 62 | C15: 25.0966811 | D15: 20.58297258 | E15: 24.16931217 | F15: 20.09042809 | G15: 23.08802309 | H15: 19.52861953 | I15: =U15*$I$14 -> 21.90668591 | J15: 18.92448292 | K15: 21.2987013 | L15: 18.62049062 | M15: 20.69071669 | N15: 18.31649832 | O15: 19.49398749 | P15: 17.73929774 | R15: 1.045695046 | S15: 1.007054674 | T15: 0.962000962 | U15: 0.9127785794 | V15: 0.8874458874 | W15: 0.8621131954 | X15: 0.8122494789 | Y15: 0.8201471941 | Z15: 0.8312370642 | AA15: 0.8458333333 | AB15: 0.863867908 | AC15: 0.8742547425 | AD15: 0.8852519993 | AE15: 0.9099881563 | AF15: 1.110559006 | AG15: 1.062111801 | AH15: 1.057142857 | AI15: 1.068322981 | AJ15: 1.069565217 | AK15: 1.070807453 | AL15: 1.036024845 | AM15: =Y15*C15+($A$4-80)*AF15*$A$12/1000 -> 20.58297258 | AN15: =Z15*E15+($A$4-80)*AG15*$A$12/1000 -> 20.09042809 | AO15: =AA15*G15+($A$4-80)*AH15*$A$12/1000 -> 19.52861953 | AP15: =AB15*I15+($A$4-80)*AI15*$A$12/1000 -> 18.92448292 | AQ15: =AC15*K15+($A$4-80)*AJ15*$A$12/1000 -> 18.62049062 | AR15: =AD15*M15+($A$4-80)*AK15*$A$12/1000 -> 18.31649832 | AS15: =AE15*O15+($A$4-80)*AL15*$A$12/1000 -> 17.73929774
A16: 1805 | B16: 72 | C16: 28.18662819 | D16: 14.56854257 | E16: 28.67532468 | F16: 14.70707071 | G16: 28.0981241 | H16: 14.3953824 | I16: =U16*$I$14 -> 26.74747475 | J16: 13.77585378 | K16: 25.83549784 | L16: 13.38335738 | M16: 24.92352092 | N16: 12.99086099 | O16: 22.93410293 | P16: 12.17123617 | R16: 1.174442841 | S16: 1.194805195 | T16: 1.170755171 | U16: 1.114478114 | V16: 1.076479076 | W16: 1.038480038 | X16: 0.9555876223 | Y16: 0.5168600683 | Z16: 0.5128824477 | AA16: 0.5123253903 | AB16: 0.5150338081 | AC16: 0.5180220435 | AD16: 0.521228964 | AE16: 0.530704698 | AF16: 1.170083102 | AG16: 1.153462604 | AH16: 1.089196676 | AI16: 1.019390582 | AJ16: 0.9889196676 | AK16: 0.9584487535 | AL16: 0.8354570637 | AM16: =Y16*C16+($A$4-80)*AF16*$A$16/1000 -> 14.56854257 | AN16: =Z16*E16+($A$4-80)*AG16*$A$16/1000 -> 14.70707071 | AO16: =AA16*G16+($A$4-80)*AH16*$A$16/1000 -> 14.3953824 | AP16: =AB16*I16+($A$4-80)*AI16*$A$16/1000 -> 13.77585378 | AQ16: =AC16*K16+($A$4-80)*AJ16*$A$16/1000 -> 13.38335738 | AR16: =AD16*M16+($A$4-80)*AK16*$A$16/1000 -> 12.99086099 | AS16: =AE16*O16+($A$4-80)*AL16*$A$16/1000 -> 12.17123617
B17: 69.5 | C17: 27.76334776 | D17: 16.33285233 | E17: 27.83068783 | F17: 16.37518038 | G17: 27.03799904 | H17: 16.001924 | I17: =U17*$I$14 -> 25.65079365 | J17: 15.35930736 | K17: 24.7974988 | L17: 14.97546898 | M17: 23.94420394 | N17: 14.59163059 | O17: 22.1952862 | P17: 13.84126984 | R17: 1.156806157 | S17: 1.159611993 | T17: 1.126583293 | U17: 1.068783069 | V17: 1.033229117 | W17: 0.9976751643 | X17: 0.9248035915 | Y17: 0.5882882883 | Z17: 0.5883857587 | AA17: 0.5918309258 | AB17: 0.5987848785 | AC17: 0.6039104628 | AD17: 0.609401366 | AE17: 0.6236130374 | AF17: 1.170083102 | AG17: 1.153462604 | AH17: 1.089196676 | AI17: 1.019390582 | AJ17: 0.9889196676 | AK17: 0.9584487535 | AL17: 0.8354570637 | AM17: =Y17*C17+($A$4-80)*AF17*$A$16/1000 -> 16.33285233 | AN17: =Z17*E17+($A$4-80)*AG17*$A$16/1000 -> 16.37518038 | AO17: =AA17*G17+($A$4-80)*AH17*$A$16/1000 -> 16.001924 | AP17: =AB17*I17+($A$4-80)*AI17*$A$16/1000 -> 15.35930736 | AQ17: =AC17*K17+($A$4-80)*AJ17*$A$16/1000 -> 14.97546898 | AR17: =AD17*M17+($A$4-80)*AK17*$A$16/1000 -> 14.59163059 | AS17: =AE17*O17+($A$4-80)*AL17*$A$16/1000 -> 13.84126984
B18: 67 | C18: 27.34006734 | D18: 18.0971621 | E18: 26.98605099 | F18: 18.04329004 | G18: 25.97787398 | H18: 17.60846561 | I18: =U18*$I$14 -> 24.55411255 | J18: 16.94276094 | K18: 23.75949976 | L18: 16.56758057 | M18: 22.96488696 | N18: 16.19240019 | O18: 21.45646946 | P18: 15.51130351 | R18: 1.139169473 | S18: 1.124418791 | T18: 1.082411416 | U18: 1.023088023 | V18: 0.9899791566 | W18: 0.9568702902 | X18: 0.8940195607 | Y18: 0.6619282196 | Z18: 0.6686154285 | AA18: 0.6778255073 | AB18: 0.6900172387 | AC18: 0.6973034254 | AD18: 0.7050938338 | AE18: 0.7229196557 | AF18: 1.170083102 | AG18: 1.153462604 | AH18: 1.089196676 | AI18: 1.019390582 | AJ18: 0.9889196676 | AK18: 0.9584487535 | AL18: 0.8354570637 | AM18: =Y18*C18+($A$4-80)*AF18*$A$16/1000 -> 18.0971621 | AN18: =Z18*E18+($A$4-80)*AG18*$A$16/1000 -> 18.04329004 | AO18: =AA18*G18+($A$4-80)*AH18*$A$16/1000 -> 17.60846561 | AP18: =AB18*I18+($A$4-80)*AI18*$A$16/1000 -> 16.94276094 | AQ18: =AC18*K18+($A$4-80)*AJ18*$A$16/1000 -> 16.56758057 | AR18: =AD18*M18+($A$4-80)*AK18*$A$16/1000 -> 16.19240019 | AS18: =AE18*O18+($A$4-80)*AL18*$A$16/1000 -> 15.51130351
B19: 62 | C19: 25.82395382 | D19: 21.84511785 | E19: 24.89273689 | F19: 21.39105339 | G19: 23.71909572 | H19: 20.74458874 | I19: =U19*$I$14 -> 22.44540645 | J19: 20.00577201 | K19: 21.82395382 | L19: 19.64790765 | M19: 21.2025012 | N19: 19.29004329 | O19: 20.12506013 | P19: 18.71284271 | R19: 1.075998076 | S19: 1.037197371 | T19: 0.988295655 | U19: 0.9352252686 | V19: 0.9093314093 | W19: 0.8834375501 | X19: 0.8385441719 | Y19: 0.8459246014 | Z19: 0.8593291081 | AA19: 0.8745944192 | AB19: 0.8913080747 | AC19: 0.9002909283 | AD19: 0.909800363 | AE19: 0.9298279159 | AF19: 1.170083102 | AG19: 1.153462604 | AH19: 1.089196676 | AI19: 1.019390582 | AJ19: 0.9889196676 | AK19: 0.9584487535 | AL19: 0.8354570637 | AM19: =Y19*C19+($A$4-80)*AF19*$A$16/1000 -> 21.84511785 | AN19: =Z19*E19+($A$4-80)*AG19*$A$16/1000 -> 21.39105339 | AO19: =AA19*G19+($A$4-80)*AH19*$A$16/1000 -> 20.74458874 | AP19: =AB19*I19+($A$4-80)*AI19*$A$16/1000 -> 20.00577201 | AQ19: =AC19*K19+($A$4-80)*AJ19*$A$16/1000 -> 19.64790765 | AR19: =AD19*M19+($A$4-80)*AK19*$A$16/1000 -> 19.29004329 | AS19: =AE19*O19+($A$4-80)*AL19*$A$16/1000 -> 18.71284271

Sheet Form (hidden)
C2: Select Maytag Condenser: | J2: Second Stage (Boost Speed C5) Cooling
C3: ADP Evaporator: | N3: 24
C4: Nominal Capacity: | E4: (Mbtuh) | L4: Condenser Entering Air Temperature: | N4: (°F) Dry Bulb, 65°F to 115°F
C5: AHRI Rated Capacity: | E5: (Mbtuh) @ 95 ˚F & 80/67 ˚F conditions | L5: Evaporator Air Flow (CFM): | O5: to
C6: Entering Evaporator Air (DB): | E6: (°F) Dry Bulb -- 80°F Standard | L6: Entering Evaporator Air (WB): | N6: (°F) Wet Bulb, 62°F to 72°F
N7: 48
N8: CFM
A14: Extended Ratings
F18: Maytag Condenser :
F19: ADP Evaporator:
F20: Condenser Entering Air Temperature: | H20: (°F) Dry Bulb, 65°F to 115°F
F21: Evaporator Air Flow: | H21: CFM
F22: Entering Evaporator Air (DB): | H22: (°F) Dry Bulb
F23: Entering Evaporator Air (WB): | H23: (°F) Wet Bulb, 62°F to 72°F
F24: AHRI Rated Capacity: | H24: (Mbtuh) @ 95 ˚F & 80/67 ˚F conditions
A26: Evaporator Air | C26: Condenser Entering Air Temperature ˚F
A27: 80 | B27: °F DB | C27: 65 | E27: 75 | G27: 85 | I27: 95 | K27: 100 | M27: 105 | O27: 115
A28: CFM | B28: EWB† ˚F | C28: Capacity Mbtuh | E28: Capacity Mbtuh | G28: Capacity Mbtuh | I28: Capacity Mbtuh | K28: Capacity Mbtuh | M28: Capacity Mbtuh | O28: Capacity Mbtuh
C29: Total | D29: Sens. | E29: Total | F29: Sens. | G29: Total | H29: Sens. | I29: Total | J29: Sens. | K29: Total | L29: Sens. | M29: Total | N29: Sens. | O29: Total | P29: Sens.
D44: Condenser Entering Air Temperature: | F44: (°F) Dry Bulb, 65°F to 115°F | J44: CAPACITY IN MBTUH UNDER SPECIFIC CONDITIONS LISTED
D45: Evaporator Air Flow: | F45: CFM | K45: TOTAL
D46: Entering Evaporator Air (WB): | F46: (°F) Wet Bulb, 62°F to 72°F | K46: SENSIBLE
J47: Second Stage (Boost Speed C5) Cooling
A48: Notes: | B48: † Entering Wet Bulb
B49: Extended ratings are not certified. They are calculated based upon typical condenser performance curves and are for engineering information only.
B50: When the required data fall between the published data, interpolation may be performed. Extrapolation is not an acceptable practice.
B51: Displayed sensible capacity has been adjusted based upon indoor DB. Sensible capacity will increase with higher indoor DB and decrease with lower indoor DB.
B52: The magnitude of the adjustment depends partially on evaporator air flow, with greater adjustment at higher CFM.
A53: Printed: | P53: MP-19-A

Sheet Instructions (hidden)
B7: This spreadsheet generates capacity information for ADP rated matches at other than nominal conditions.
B8: The information is provided is not certified and is provided for engineering use only.
B10: The latest version will allways be available at: www.adpnow.com/extratings/
B12: In order to generate an extended rating, you will need the following information:
C13: Condenser model number
C14: ADP coil model number
C15: Nominal capacity
C16: Rated capacity (from AHRI database)
C17: Condenser entering air dry bulb temperature
C18: Indoor entering air dry bulb temperature
C19: Indoor entering air wet bulb temperature
C20: Indoor airflow
B22: Select the condenser series and nominal tonnage form the drop down lists.
B23: Enter the remaining information in the correct cells. Note there are limits on the range of values allowed.
B24: Click on "Calculate" to calculate the extended ratings.
B25: The table will show capacities for various conditions. The capacities at the specific design point are
B26: at the bottom of the page.
B27: From this point you may:
C28: Click "Clear" to clear the form and start over.
C29: Click "Print" to print a copy of the data.
C30: Click "Copy" to copy the data to a new spreadsheet and save it in the same directory.
B32: Notes: | C32: Displayed sensible capacity has been adjusted based upon indoor DB. Sensible capacity will
C33: increase with higher indoor DB and decrease with lower indoor DB. The magnitude of the
C34: adjustment depends partially on evaporator air flow, with greater adjustment at higher CFM.
B36: Versions: | C36: MP-15-A | D36: 2015-05-01 | E36: Initial public release
C37: MP-16-A | D37: 2016-03-22 | E37: Renewed date key through 2016
C38: MP-19-A | D38: 2019-05-20 | E38: New Version

Sheet Prompt
B6: In order to use this spreadsheet,
B7: Please enable Macros in your security settings.
B9: Enabling Macros in Excel 2007
B10: 1. In Excel, click the Office button in the upper left corner of the screen.
B11: 2. Click the "Excel Options" button in the lower right.
B12: 3. Click the "Trust Center" button on the left. Then, at the bottom right, select "Trust Center Settings" as shown below.
B13: 4. In the next window, select "Macro Settings," then select the radio button for "Disable all macros with notification."
B14: 5. When openning this spreadsheet, you will see a warning like this in the menu bar:
B17: 6. Select "Enable this content" and click "Okay". The spreadsheet will now be functional.

Sheet Sheet1 (hidden)
